Workbook

Sheet 2000002083
B1: Title: | C1: Multiphysics Characterization of Printed Smart Materials and Systems | F1: Start Date: | G1: 2021-07-01 | I1: Projection as of: | J1: 2022-08-15
B2: Award # | C2: 3742013 | F2: End Date: | G2: 2022-06-30 | I2: Updated by: | J2: Jason Papka
B3: Fund | C3: 1850
B4: Dept | C4: 13000
B5: Cost Center | C5: 1001004 | F5: OSP # | G5: 9937 | I5: PI: | J5: Dan Deng
B6: Project | C6: 2000002083 | F6: =IF(ISERROR(G5),"◄ Manually Enter OSP #",HYPERLINK("file:////\\fircreek1\departments\Vice President Research\Sponsored Project Files\"&G5,"Award Files")) -> Award Files | I6: Sponsor: | J6: Idaho State Board of Education
C9: Original | D9: PPM | E9: Life To Date | G9: Remaining | H9: % | J9: Est Remaining | K9: %
C10: Budget | D10: Budget | E10: Expense | F10: Encumbered | G10: Budget | H10: Remaining | I10: Projected | J10: Budget | K10: Remaining
B11: Reg Sal | D11: ='BARs & Mods'!N4 -> 0 | E11: 0 | F11: 0 | G11: =D11-(SUM(E11:F11)) -> 0 | H11: =IF(G11=0,"-",G11/D11) -> - | I11: =SUMIF('Payroll Expenses & Projections'!G:G,"Regular",'Payroll Expenses & Projections'!J:J) -> 0 | J11: =G11-(SUM(I11)) -> 0 | K11: =IF(J11=0,"-",J11/D11) -> -
B12: Irr Sal | D12: ='BARs & Mods'!N5 -> 0 | E12: 0 | F12: 0 | G12: =D12-(SUM(E12:F12)) -> 0 | H12: =IF(G12=0,"-",G12/D12) -> - | I12: =SUMIF('Payroll Expenses & Projections'!G:G,"Irregular",'Payroll Expenses & Projections'!J:J) -> 0 | J12: =G12-(SUM(I12)) -> 0 | K12: =IF(J12=0,"-",J12/D12) -> -
B13: Sum Sal | D13: ='BARs & Mods'!N6 -> 0 | E13: 0 | F13: 0 | G13: =D13-(SUM(E13:F13)) -> 0 | H13: =IF(G13=0,"-",G13/D13) -> - | I13: =SUMIF('Payroll Expenses & Projections'!G:G,"Summer",'Payroll Expenses & Projections'!J:J) -> 0 | J13: =G13-(SUM(I13)) -> 0 | K13: =IF(J13=0,"-",J13/D13) -> -
B14: Stu Sal | C14: 12206 | D14: ='BARs & Mods'!N7 -> 0 | E14: 0 | F14: 0 | G14: =D14-(SUM(E14:F14)) -> 0 | H14: =IF(G14=0,"-",G14/D14) -> - | I14: =SUMIF('Payroll Expenses & Projections'!G:G,"Students",'Payroll Expenses & Projections'!J:J) -> 0 | J14: =G14-(SUM(I14)) -> 0 | K14: =IF(J14=0,"-",J14/D14) -> - | M14: Rec'd approval to use budget allocated for payroll on capital
B15: Fringe | C15: 2260 | D15: ='BARs & Mods'!N8 -> 0 | E15: 0 | F15: 0 | G15: =D15-E15-F15 -> 0 | H15: =IF(G15=0,"-",G15/D15) -> - | I15: =(SUMIF('Payroll Expenses & Projections'!G:G,"Z-Fringe",'Payroll Expenses & Projections'!J:J))+(SUMIF('Payroll Expenses & Projections'!G:G,"HealthIns",'Payroll Expenses & Projections'!J:J)) -> 0 | J15: =G15-I15 -> 0 | K15: =IF(J15=0,"-",J15/D15) -> - | M15: 4/23/22- Sent Sam copy of BAR and HERC budget adjustment approval. Smartsheet would not accept attachments.
B16: OE | D16: ='BARs & Mods'!N9 -> 0 | E16: 11514.9 | F16: 0 | G16: -11514.9 | H16: =IF(G16=0,"-",G16/D16) ->  | I16: 0 | J16: -11514.9 | M16: resubmitted BAR (# 3202) on 7/8/22 and sent copies of documents to Sam because form would not accept attachments
B17: Travel | D17: ='BARs & Mods'!N10 -> 0 | E17: 0 | F17: 0 | G17: 0 | H17: - | I17: ='Travel Enc Summary'!B20 -> 0 | J17: 0 | K17: -
B18: Capital | C18: 85534 | D18: ='BARs & Mods'!N11 -> 100000 | E18: 0 | F18: 85358.82 | G18: 14641.18 | H18: 0.1464118 | J18: 14641.18 | K18: 0.1464118
B19: Subcontracts | D19: ='BARs & Mods'!N12 -> 0 | E19: 0 | F19: 0 | G19: 0 | H19: - | I19: 0 | J19: 0 | K19: -
B20: Student Costs | D20: ='BARs & Mods'!N13 -> 0 | E20: 0 | F20: 0 | G20: 0 | H20: - | I20: ='GA Fees'!E10 -> 0 | J20: 0 | K20: -
B21: Total Direct | C21: =SUM(C11:C20) -> 100000 | D21: =SUM(D11:D20) -> 100000 | E21: =SUM(E11:E20) -> 11514.9 | F21: =SUM(F11:F20) -> 85358.82 | G21: =SUM(G11:G20) -> 3126.28 | I21: =SUM(I11:I20) -> 0 | J21: =SUM(J11:J20) -> 3126.28 | L21: F&A Type: | M21: N/A
B22: F&A | D22: ='BARs & Mods'!N15 -> 0 | E22: 0 | F22: =IF(M21="MTDC",SUM(E11:F17)*M22,IF(M21="TDC",SUM(E11:F20)*M22,0))-E22 -> 0 | G22: =D22-E22-F22 -> 0 | H22: =IF(G22=0,"-",G22/D22) -> - | I22: =IF(M21="MTDC",SUM(I11:I17)*M22,IF(M21="TDC",SUM(I11:I20)*M22,0)) -> 0 | J22: =G22-I22 -> 0 | K22: =IF(J22=0,"-",J22/D22) -> - | L22: F&A Rate: | M22: 0
B24: Totals | C24: =SUM(C21:C22) -> 100000 | D24: =SUM(D21:D22) -> 100000 | E24: =SUM(E21:E22) -> 11514.9 | F24: =SUM(F21:F22) -> 85358.82 | G24: =SUM(G21:G22) -> 3126.28 | H24: =IF(G24=0,"-",G24/D24) -> 0.0312628 | I24: =SUM(I21:I22) -> 0 | J24: =SUM(J21:J22) -> 3126.28 | K24: =IF(J24=0,"-",J24/D24) -> 0.0312628
M27: Payroll Summary
M28: Employee Name | N28: Total Salary Spent | O28: Total Fringe Spent | P28: Projected Salary | Q28: Projected Fringe
N29: =SUMIFS('Payroll Expenses & Projections'!I:I,'Payroll Expenses & Projections'!F:F,M29,'Payroll Expenses & Projections'!G:G,"Regular")+SUMIFS('Payroll Expenses & Projections'!I:I,'Payroll Expenses & Projections'!F:F,M29,'Payroll Expenses & Projections'!G:G,"Irregular")+SUMIFS('Payroll Expenses & Projections'!I:I,'Payroll Expenses & Projections'!F:F,M29,'Payroll Expenses & Projections'!G:G,"Summer")+SUMIFS('Payroll Expenses & Projections'!I:I,'Payroll Expenses & Projections'!F:F,M29,'Payroll Expenses & Projections'!G:G,"Students") -> 0 | O29: =SUMIFS('Payroll Expenses & Projections'!I:I,'Payroll Expenses & Projections'!F:F,M29,'Payroll Expenses & Projections'!G:G,"Z-Fringe")+SUMIFS('Payroll Expenses & Projections'!I:I,'Payroll Expenses & Projections'!F:F,M29,'Payroll Expenses & Projections'!G:G,"HealthIns") -> 0 | P29: =SUMIFS('Payroll Expenses & Projections'!J:J,'Payroll Expenses & Projections'!F:F,M29,'Payroll Expenses & Projections'!G:G,"Regular")+SUMIFS('Payroll Expenses & Projections'!J:J,'Payroll Expenses & Projections'!F:F,M29,'Payroll Expenses & Projections'!G:G,"Irregular")+SUMIFS('Payroll Expenses & Projections'!J:J,'Payroll Expenses & Projections'!F:F,M29,'Payroll Expenses & Projections'!G:G,"Summer")+SUMIFS('Payroll Expenses & Projections'!J:J,'Payroll Expenses & Projections'!F:F,M29,'Payroll Expenses & Projections'!G:G,"Students") -> 0 | Q29: =SUMIFS('Payroll Expenses & Projections'!J:J,'Payroll Expenses & Projections'!F:F,M29,'Payroll Expenses & Projections'!G:G,"Z-Fringe")+SUMIFS('Payroll Expenses & Projections'!J:J,'Payroll Expenses & Projections'!F:F,M29,'Payroll Expenses & Projections'!G:G,"HealthIns") -> 0
N30: =SUMIFS('Payroll Expenses & Projections'!I:I,'Payroll Expenses & Projections'!F:F,M30,'Payroll Expenses & Projections'!G:G,"Regular")+SUMIFS('Payroll Expenses & Projections'!I:I,'Payroll Expenses & Projections'!F:F,M30,'Payroll Expenses & Projections'!G:G,"Irregular")+SUMIFS('Payroll Expenses & Projections'!I:I,'Payroll Expenses & Projections'!F:F,M30,'Payroll Expenses & Projections'!G:G,"Summer")+SUMIFS('Payroll Expenses & Projections'!I:I,'Payroll Expenses & Projections'!F:F,M30,'Payroll Expenses & Projections'!G:G,"Students") -> 0 | O30: =SUMIFS('Payroll Expenses & Projections'!I:I,'Payroll Expenses & Projections'!F:F,M30,'Payroll Expenses & Projections'!G:G,"Z-Fringe")+SUMIFS('Payroll Expenses & Projections'!I:I,'Payroll Expenses & Projections'!F:F,M30,'Payroll Expenses & Projections'!G:G,"HealthIns") -> 0 | P30: =SUMIFS('Payroll Expenses & Projections'!J:J,'Payroll Expenses & Projections'!F:F,M30,'Payroll Expenses & Projections'!G:G,"Regular")+SUMIFS('Payroll Expenses & Projections'!J:J,'Payroll Expenses & Projections'!F:F,M30,'Payroll Expenses & Projections'!G:G,"Irregular")+SUMIFS('Payroll Expenses & Projections'!J:J,'Payroll Expenses & Projections'!F:F,M30,'Payroll Expenses & Projections'!G:G,"Summer")+SUMIFS('Payroll Expenses & Projections'!J:J,'Payroll Expenses & Projections'!F:F,M30,'Payroll Expenses & Projections'!G:G,"Students") -> 0 | Q30: =SUMIFS('Payroll Expenses & Projections'!J:J,'Payroll Expenses & Projections'!F:F,M30,'Payroll Expenses & Projections'!G:G,"Z-Fringe")+SUMIFS('Payroll Expenses & Projections'!J:J,'Payroll Expenses & Projections'!F:F,M30,'Payroll Expenses & Projections'!G:G,"HealthIns") -> 0
N31: =SUMIFS('Payroll Expenses & Projections'!I:I,'Payroll Expenses & Projections'!F:F,M31,'Payroll Expenses & Projections'!G:G,"Regular")+SUMIFS('Payroll Expenses & Projections'!I:I,'Payroll Expenses & Projections'!F:F,M31,'Payroll Expenses & Projections'!G:G,"Irregular")+SUMIFS('Payroll Expenses & Projections'!I:I,'Payroll Expenses & Projections'!F:F,M31,'Payroll Expenses & Projections'!G:G,"Summer")+SUMIFS('Payroll Expenses & Projections'!I:I,'Payroll Expenses & Projections'!F:F,M31,'Payroll Expenses & Projections'!G:G,"Students") -> 0 | O31: =SUMIFS('Payroll Expenses & Projections'!I:I,'Payroll Expenses & Projections'!F:F,M31,'Payroll Expenses & Projections'!G:G,"Z-Fringe")+SUMIFS('Payroll Expenses & Projections'!I:I,'Payroll Expenses & Projections'!F:F,M31,'Payroll Expenses & Projections'!G:G,"HealthIns") -> 0 | P31: =SUMIFS('Payroll Expenses & Projections'!J:J,'Payroll Expenses & Projections'!F:F,M31,'Payroll Expenses & Projections'!G:G,"Regular")+SUMIFS('Payroll Expenses & Projections'!J:J,'Payroll Expenses & Projections'!F:F,M31,'Payroll Expenses & Projections'!G:G,"Irregular")+SUMIFS('Payroll Expenses & Projections'!J:J,'Payroll Expenses & Projections'!F:F,M31,'Payroll Expenses & Projections'!G:G,"Summer")+SUMIFS('Payroll Expenses & Projections'!J:J,'Payroll Expenses & Projections'!F:F,M31,'Payroll Expenses & Projections'!G:G,"Students") -> 0 | Q31: =SUMIFS('Payroll Expenses & Projections'!J:J,'Payroll Expenses & Projections'!F:F,M31,'Payroll Expenses & Projections'!G:G,"Z-Fringe")+SUMIFS('Payroll Expenses & Projections'!J:J,'Payroll Expenses & Projections'!F:F,M31,'Payroll Expenses & Projections'!G:G,"HealthIns") -> 0
K32: Total Budget | N32: =SUMIFS('Payroll Expenses & Projections'!I:I,'Payroll Expenses & Projections'!F:F,M32,'Payroll Expenses & Projections'!G:G,"Regular")+SUMIFS('Payroll Expenses & Projections'!I:I,'Payroll Expenses & Projections'!F:F,M32,'Payroll Expenses & Projections'!G:G,"Irregular")+SUMIFS('Payroll Expenses & Projections'!I:I,'Payroll Expenses & Projections'!F:F,M32,'Payroll Expenses & Projections'!G:G,"Summer")+SUMIFS('Payroll Expenses & Projections'!I:I,'Payroll Expenses & Projections'!F:F,M32,'Payroll Expenses & Projections'!G:G,"Students") -> 0 | O32: =SUMIFS('Payroll Expenses & Projections'!I:I,'Payroll Expenses & Projections'!F:F,M32,'Payroll Expenses & Projections'!G:G,"Z-Fringe")+SUMIFS('Payroll Expenses & Projections'!I:I,'Payroll Expenses & Projections'!F:F,M32,'Payroll Expenses & Projections'!G:G,"HealthIns") -> 0 | P32: =SUMIFS('Payroll Expenses & Projections'!J:J,'Payroll Expenses & Projections'!F:F,M32,'Payroll Expenses & Projections'!G:G,"Regular")+SUMIFS('Payroll Expenses & Projections'!J:J,'Payroll Expenses & Projections'!F:F,M32,'Payroll Expenses & Projections'!G:G,"Irregular")+SUMIFS('Payroll Expenses & Projections'!J:J,'Payroll Expenses & Projections'!F:F,M32,'Payroll Expenses & Projections'!G:G,"Summer")+SUMIFS('Payroll Expenses & Projections'!J:J,'Payroll Expenses & Projections'!F:F,M32,'Payroll Expenses & Projections'!G:G,"Students") -> 0 | Q32: =SUMIFS('Payroll Expenses & Projections'!J:J,'Payroll Expenses & Projections'!F:F,M32,'Payroll Expenses & Projections'!G:G,"Z-Fringe")+SUMIFS('Payroll Expenses & Projections'!J:J,'Payroll Expenses & Projections'!F:F,M32,'Payroll Expenses & Projections'!G:G,"HealthIns") -> 0
K33: Monthly Expenses | N33: =SUMIFS('Payroll Expenses & Projections'!I:I,'Payroll Expenses & Projections'!F:F,M33,'Payroll Expenses & Projections'!G:G,"Regular")+SUMIFS('Payroll Expenses & Projections'!I:I,'Payroll Expenses & Projections'!F:F,M33,'Payroll Expenses & Projections'!G:G,"Irregular")+SUMIFS('Payroll Expenses & Projections'!I:I,'Payroll Expenses & Projections'!F:F,M33,'Payroll Expenses & Projections'!G:G,"Summer")+SUMIFS('Payroll Expenses & Projections'!I:I,'Payroll Expenses & Projections'!F:F,M33,'Payroll Expenses & Projections'!G:G,"Students") -> 0 | O33: =SUMIFS('Payroll Expenses & Projections'!I:I,'Payroll Expenses & Projections'!F:F,M33,'Payroll Expenses & Projections'!G:G,"Z-Fringe")+SUMIFS('Payroll Expenses & Projections'!I:I,'Payroll Expenses & Projections'!F:F,M33,'Payroll Expenses & Projections'!G:G,"HealthIns") -> 0 | P33: =SUMIFS('Payroll Expenses & Projections'!J:J,'Payroll Expenses & Projections'!F:F,M33,'Payroll Expenses & Projections'!G:G,"Regular")+SUMIFS('Payroll Expenses & Projections'!J:J,'Payroll Expenses & Projections'!F:F,M33,'Payroll Expenses & Projections'!G:G,"Irregular")+SUMIFS('Payroll Expenses & Projections'!J:J,'Payroll Expenses & Projections'!F:F,M33,'Payroll Expenses & Projections'!G:G,"Summer")+SUMIFS('Payroll Expenses & Projections'!J:J,'Payroll Expenses & Projections'!F:F,M33,'Payroll Expenses & Projections'!G:G,"Students") -> 0 | Q33: =SUMIFS('Payroll Expenses & Projections'!J:J,'Payroll Expenses & Projections'!F:F,M33,'Payroll Expenses & Projections'!G:G,"Z-Fringe")+SUMIFS('Payroll Expenses & Projections'!J:J,'Payroll Expenses & Projections'!F:F,M33,'Payroll Expenses & Projections'!G:G,"HealthIns") -> 0
N34: =SUMIFS('Payroll Expenses & Projections'!I:I,'Payroll Expenses & Projections'!F:F,M34,'Payroll Expenses & Projections'!G:G,"Regular")+SUMIFS('Payroll Expenses & Projections'!I:I,'Payroll Expenses & Projections'!F:F,M34,'Payroll Expenses & Projections'!G:G,"Irregular")+SUMIFS('Payroll Expenses & Projections'!I:I,'Payroll Expenses & Projections'!F:F,M34,'Payroll Expenses & Projections'!G:G,"Summer")+SUMIFS('Payroll Expenses & Projections'!I:I,'Payroll Expenses & Projections'!F:F,M34,'Payroll Expenses & Projections'!G:G,"Students") -> 0 | O34: =SUMIFS('Payroll Expenses & Projections'!I:I,'Payroll Expenses & Projections'!F:F,M34,'Payroll Expenses & Projections'!G:G,"Z-Fringe")+SUMIFS('Payroll Expenses & Projections'!I:I,'Payroll Expenses & Projections'!F:F,M34,'Payroll Expenses & Projections'!G:G,"HealthIns") -> 0 | P34: =SUMIFS('Payroll Expenses & Projections'!J:J,'Payroll Expenses & Projections'!F:F,M34,'Payroll Expenses & Projections'!G:G,"Regular")+SUMIFS('Payroll Expenses & Projections'!J:J,'Payroll Expenses & Projections'!F:F,M34,'Payroll Expenses & Projections'!G:G,"Irregular")+SUMIFS('Payroll Expenses & Projections'!J:J,'Payroll Expenses & Projections'!F:F,M34,'Payroll Expenses & Projections'!G:G,"Summer")+SUMIFS('Payroll Expenses & Projections'!J:J,'Payroll Expenses & Projections'!F:F,M34,'Payroll Expenses & Projections'!G:G,"Students") -> 0 | Q34: =SUMIFS('Payroll Expenses & Projections'!J:J,'Payroll Expenses & Projections'!F:F,M34,'Payroll Expenses & Projections'!G:G,"Z-Fringe")+SUMIFS('Payroll Expenses & Projections'!J:J,'Payroll Expenses & Projections'!F:F,M34,'Payroll Expenses & Projections'!G:G,"HealthIns") -> 0
N35: =SUMIFS('Payroll Expenses & Projections'!I:I,'Payroll Expenses & Projections'!F:F,M35,'Payroll Expenses & Projections'!G:G,"Regular")+SUMIFS('Payroll Expenses & Projections'!I:I,'Payroll Expenses & Projections'!F:F,M35,'Payroll Expenses & Projections'!G:G,"Irregular")+SUMIFS('Payroll Expenses & Projections'!I:I,'Payroll Expenses & Projections'!F:F,M35,'Payroll Expenses & Projections'!G:G,"Summer")+SUMIFS('Payroll Expenses & Projections'!I:I,'Payroll Expenses & Projections'!F:F,M35,'Payroll Expenses & Projections'!G:G,"Students") -> 0 | O35: =SUMIFS('Payroll Expenses & Projections'!I:I,'Payroll Expenses & Projections'!F:F,M35,'Payroll Expenses & Projections'!G:G,"Z-Fringe")+SUMIFS('Payroll Expenses & Projections'!I:I,'Payroll Expenses & Projections'!F:F,M35,'Payroll Expenses & Projections'!G:G,"HealthIns") -> 0 | P35: =SUMIFS('Payroll Expenses & Projections'!J:J,'Payroll Expenses & Projections'!F:F,M35,'Payroll Expenses & Projections'!G:G,"Regular")+SUMIFS('Payroll Expenses & Projections'!J:J,'Payroll Expenses & Projections'!F:F,M35,'Payroll Expenses & Projections'!G:G,"Irregular")+SUMIFS('Payroll Expenses & Projections'!J:J,'Payroll Expenses & Projections'!F:F,M35,'Payroll Expenses & Projections'!G:G,"Summer")+SUMIFS('Payroll Expenses & Projections'!J:J,'Payroll Expenses & Projections'!F:F,M35,'Payroll Expenses & Projections'!G:G,"Students") -> 0 | Q35: =SUMIFS('Payroll Expenses & Projections'!J:J,'Payroll Expenses & Projections'!F:F,M35,'Payroll Expenses & Projections'!G:G,"Z-Fringe")+SUMIFS('Payroll Expenses & Projections'!J:J,'Payroll Expenses & Projections'!F:F,M35,'Payroll Expenses & Projections'!G:G,"HealthIns") -> 0
N36: =SUMIFS('Payroll Expenses & Projections'!I:I,'Payroll Expenses & Projections'!F:F,M36,'Payroll Expenses & Projections'!G:G,"Regular")+SUMIFS('Payroll Expenses & Projections'!I:I,'Payroll Expenses & Projections'!F:F,M36,'Payroll Expenses & Projections'!G:G,"Irregular")+SUMIFS('Payroll Expenses & Projections'!I:I,'Payroll Expenses & Projections'!F:F,M36,'Payroll Expenses & Projections'!G:G,"Summer")+SUMIFS('Payroll Expenses & Projections'!I:I,'Payroll Expenses & Projections'!F:F,M36,'Payroll Expenses & Projections'!G:G,"Students") -> 0 | O36: =SUMIFS('Payroll Expenses & Projections'!I:I,'Payroll Expenses & Projections'!F:F,M36,'Payroll Expenses & Projections'!G:G,"Z-Fringe")+SUMIFS('Payroll Expenses & Projections'!I:I,'Payroll Expenses & Projections'!F:F,M36,'Payroll Expenses & Projections'!G:G,"HealthIns") -> 0 | P36: =SUMIFS('Payroll Expenses & Projections'!J:J,'Payroll Expenses & Projections'!F:F,M36,'Payroll Expenses & Projections'!G:G,"Regular")+SUMIFS('Payroll Expenses & Projections'!J:J,'Payroll Expenses & Projections'!F:F,M36,'Payroll Expenses & Projections'!G:G,"Irregular")+SUMIFS('Payroll Expenses & Projections'!J:J,'Payroll Expenses & Projections'!F:F,M36,'Payroll Expenses & Projections'!G:G,"Summer")+SUMIFS('Payroll Expenses & Projections'!J:J,'Payroll Expenses & Projections'!F:F,M36,'Payroll Expenses & Projections'!G:G,"Students") -> 0 | Q36: =SUMIFS('Payroll Expenses & Projections'!J:J,'Payroll Expenses & Projections'!F:F,M36,'Payroll Expenses & Projections'!G:G,"Z-Fringe")+SUMIFS('Payroll Expenses & Projections'!J:J,'Payroll Expenses & Projections'!F:F,M36,'Payroll Expenses & Projections'!G:G,"HealthIns") -> 0
N37: =SUMIFS('Payroll Expenses & Projections'!I:I,'Payroll Expenses & Projections'!F:F,M37,'Payroll Expenses & Projections'!G:G,"Regular")+SUMIFS('Payroll Expenses & Projections'!I:I,'Payroll Expenses & Projections'!F:F,M37,'Payroll Expenses & Projections'!G:G,"Irregular")+SUMIFS('Payroll Expenses & Projections'!I:I,'Payroll Expenses & Projections'!F:F,M37,'Payroll Expenses & Projections'!G:G,"Summer")+SUMIFS('Payroll Expenses & Projections'!I:I,'Payroll Expenses & Projections'!F:F,M37,'Payroll Expenses & Projections'!G:G,"Students") -> 0 | O37: =SUMIFS('Payroll Expenses & Projections'!I:I,'Payroll Expenses & Projections'!F:F,M37,'Payroll Expenses & Projections'!G:G,"Z-Fringe")+SUMIFS('Payroll Expenses & Projections'!I:I,'Payroll Expenses & Projections'!F:F,M37,'Payroll Expenses & Projections'!G:G,"HealthIns") -> 0 | P37: =SUMIFS('Payroll Expenses & Projections'!J:J,'Payroll Expenses & Projections'!F:F,M37,'Payroll Expenses & Projections'!G:G,"Regular")+SUMIFS('Payroll Expenses & Projections'!J:J,'Payroll Expenses & Projections'!F:F,M37,'Payroll Expenses & Projections'!G:G,"Irregular")+SUMIFS('Payroll Expenses & Projections'!J:J,'Payroll Expenses & Projections'!F:F,M37,'Payroll Expenses & Projections'!G:G,"Summer")+SUMIFS('Payroll Expenses & Projections'!J:J,'Payroll Expenses & Projections'!F:F,M37,'Payroll Expenses & Projections'!G:G,"Students") -> 0 | Q37: =SUMIFS('Payroll Expenses & Projections'!J:J,'Payroll Expenses & Projections'!F:F,M37,'Payroll Expenses & Projections'!G:G,"Z-Fringe")+SUMIFS('Payroll Expenses & Projections'!J:J,'Payroll Expenses & Projections'!F:F,M37,'Payroll Expenses & Projections'!G:G,"HealthIns") -> 0
N38: =SUMIFS('Payroll Expenses & Projections'!I:I,'Payroll Expenses & Projections'!F:F,M38,'Payroll Expenses & Projections'!G:G,"Regular")+SUMIFS('Payroll Expenses & Projections'!I:I,'Payroll Expenses & Projections'!F:F,M38,'Payroll Expenses & Projections'!G:G,"Irregular")+SUMIFS('Payroll Expenses & Projections'!I:I,'Payroll Expenses & Projections'!F:F,M38,'Payroll Expenses & Projections'!G:G,"Summer")+SUMIFS('Payroll Expenses & Projections'!I:I,'Payroll Expenses & Projections'!F:F,M38,'Payroll Expenses & Projections'!G:G,"Students") -> 0 | O38: =SUMIFS('Payroll Expenses & Projections'!I:I,'Payroll Expenses & Projections'!F:F,M38,'Payroll Expenses & Projections'!G:G,"Z-Fringe")+SUMIFS('Payroll Expenses & Projections'!I:I,'Payroll Expenses & Projections'!F:F,M38,'Payroll Expenses & Projections'!G:G,"HealthIns") -> 0 | P38: =SUMIFS('Payroll Expenses & Projections'!J:J,'Payroll Expenses & Projections'!F:F,M38,'Payroll Expenses & Projections'!G:G,"Regular")+SUMIFS('Payroll Expenses & Projections'!J:J,'Payroll Expenses & Projections'!F:F,M38,'Payroll Expenses & Projections'!G:G,"Irregular")+SUMIFS('Payroll Expenses & Projections'!J:J,'Payroll Expenses & Projections'!F:F,M38,'Payroll Expenses & Projections'!G:G,"Summer")+SUMIFS('Payroll Expenses & Projections'!J:J,'Payroll Expenses & Projections'!F:F,M38,'Payroll Expenses & Projections'!G:G,"Students") -> 0 | Q38: =SUMIFS('Payroll Expenses & Projections'!J:J,'Payroll Expenses & Projections'!F:F,M38,'Payroll Expenses & Projections'!G:G,"Z-Fringe")+SUMIFS('Payroll Expenses & Projections'!J:J,'Payroll Expenses & Projections'!F:F,M38,'Payroll Expenses & Projections'!G:G,"HealthIns") -> 0
N39: =SUMIFS('Payroll Expenses & Projections'!I:I,'Payroll Expenses & Projections'!F:F,M39,'Payroll Expenses & Projections'!G:G,"Regular")+SUMIFS('Payroll Expenses & Projections'!I:I,'Payroll Expenses & Projections'!F:F,M39,'Payroll Expenses & Projections'!G:G,"Irregular")+SUMIFS('Payroll Expenses & Projections'!I:I,'Payroll Expenses & Projections'!F:F,M39,'Payroll Expenses & Projections'!G:G,"Summer")+SUMIFS('Payroll Expenses & Projections'!I:I,'Payroll Expenses & Projections'!F:F,M39,'Payroll Expenses & Projections'!G:G,"Students") -> 0 | O39: =SUMIFS('Payroll Expenses & Projections'!I:I,'Payroll Expenses & Projections'!F:F,M39,'Payroll Expenses & Projections'!G:G,"Z-Fringe")+SUMIFS('Payroll Expenses & Projections'!I:I,'Payroll Expenses & Projections'!F:F,M39,'Payroll Expenses & Projections'!G:G,"HealthIns") -> 0 | P39: =SUMIFS('Payroll Expenses & Projections'!J:J,'Payroll Expenses & Projections'!F:F,M39,'Payroll Expenses & Projections'!G:G,"Regular")+SUMIFS('Payroll Expenses & Projections'!J:J,'Payroll Expenses & Projections'!F:F,M39,'Payroll Expenses & Projections'!G:G,"Irregular")+SUMIFS('Payroll Expenses & Projections'!J:J,'Payroll Expenses & Projections'!F:F,M39,'Payroll Expenses & Projections'!G:G,"Summer")+SUMIFS('Payroll Expenses & Projections'!J:J,'Payroll Expenses & Projections'!F:F,M39,'Payroll Expenses & Projections'!G:G,"Students") -> 0 | Q39: =SUMIFS('Payroll Expenses & Projections'!J:J,'Payroll Expenses & Projections'!F:F,M39,'Payroll Expenses & Projections'!G:G,"Z-Fringe")+SUMIFS('Payroll Expenses & Projections'!J:J,'Payroll Expenses & Projections'!F:F,M39,'Payroll Expenses & Projections'!G:G,"HealthIns") -> 0
N40: =SUMIFS('Payroll Expenses & Projections'!I:I,'Payroll Expenses & Projections'!F:F,M40,'Payroll Expenses & Projections'!G:G,"Regular")+SUMIFS('Payroll Expenses & Projections'!I:I,'Payroll Expenses & Projections'!F:F,M40,'Payroll Expenses & Projections'!G:G,"Irregular")+SUMIFS('Payroll Expenses & Projections'!I:I,'Payroll Expenses & Projections'!F:F,M40,'Payroll Expenses & Projections'!G:G,"Summer")+SUMIFS('Payroll Expenses & Projections'!I:I,'Payroll Expenses & Projections'!F:F,M40,'Payroll Expenses & Projections'!G:G,"Students") -> 0 | O40: =SUMIFS('Payroll Expenses & Projections'!I:I,'Payroll Expenses & Projections'!F:F,M40,'Payroll Expenses & Projections'!G:G,"Z-Fringe")+SUMIFS('Payroll Expenses & Projections'!I:I,'Payroll Expenses & Projections'!F:F,M40,'Payroll Expenses & Projections'!G:G,"HealthIns") -> 0 | P40: =SUMIFS('Payroll Expenses & Projections'!J:J,'Payroll Expenses & Projections'!F:F,M40,'Payroll Expenses & Projections'!G:G,"Regular")+SUMIFS('Payroll Expenses & Projections'!J:J,'Payroll Expenses & Projections'!F:F,M40,'Payroll Expenses & Projections'!G:G,"Irregular")+SUMIFS('Payroll Expenses & Projections'!J:J,'Payroll Expenses & Projections'!F:F,M40,'Payroll Expenses & Projections'!G:G,"Summer")+SUMIFS('Payroll Expenses & Projections'!J:J,'Payroll Expenses & Projections'!F:F,M40,'Payroll Expenses & Projections'!G:G,"Students") -> 0 | Q40: =SUMIFS('Payroll Expenses & Projections'!J:J,'Payroll Expenses & Projections'!F:F,M40,'Payroll Expenses & Projections'!G:G,"Z-Fringe")+SUMIFS('Payroll Expenses & Projections'!J:J,'Payroll Expenses & Projections'!F:F,M40,'Payroll Expenses & Projections'!G:G,"HealthIns") -> 0
N41: =SUMIFS('Payroll Expenses & Projections'!I:I,'Payroll Expenses & Projections'!F:F,M41,'Payroll Expenses & Projections'!G:G,"Regular")+SUMIFS('Payroll Expenses & Projections'!I:I,'Payroll Expenses & Projections'!F:F,M41,'Payroll Expenses & Projections'!G:G,"Irregular")+SUMIFS('Payroll Expenses & Projections'!I:I,'Payroll Expenses & Projections'!F:F,M41,'Payroll Expenses & Projections'!G:G,"Summer")+SUMIFS('Payroll Expenses & Projections'!I:I,'Payroll Expenses & Projections'!F:F,M41,'Payroll Expenses & Projections'!G:G,"Students") -> 0 | O41: =SUMIFS('Payroll Expenses & Projections'!I:I,'Payroll Expenses & Projections'!F:F,M41,'Payroll Expenses & Projections'!G:G,"Z-Fringe")+SUMIFS('Payroll Expenses & Projections'!I:I,'Payroll Expenses & Projections'!F:F,M41,'Payroll Expenses & Projections'!G:G,"HealthIns") -> 0 | P41: =SUMIFS('Payroll Expenses & Projections'!J:J,'Payroll Expenses & Projections'!F:F,M41,'Payroll Expenses & Projections'!G:G,"Regular")+SUMIFS('Payroll Expenses & Projections'!J:J,'Payroll Expenses & Projections'!F:F,M41,'Payroll Expenses & Projections'!G:G,"Irregular")+SUMIFS('Payroll Expenses & Projections'!J:J,'Payroll Expenses & Projections'!F:F,M41,'Payroll Expenses & Projections'!G:G,"Summer")+SUMIFS('Payroll Expenses & Projections'!J:J,'Payroll Expenses & Projections'!F:F,M41,'Payroll Expenses & Projections'!G:G,"Students") -> 0 | Q41: =SUMIFS('Payroll Expenses & Projections'!J:J,'Payroll Expenses & Projections'!F:F,M41,'Payroll Expenses & Projections'!G:G,"Z-Fringe")+SUMIFS('Payroll Expenses & Projections'!J:J,'Payroll Expenses & Projections'!F:F,M41,'Payroll Expenses & Projections'!G:G,"HealthIns") -> 0
N42: =SUMIFS('Payroll Expenses & Projections'!I:I,'Payroll Expenses & Projections'!F:F,M42,'Payroll Expenses & Projections'!G:G,"Regular")+SUMIFS('Payroll Expenses & Projections'!I:I,'Payroll Expenses & Projections'!F:F,M42,'Payroll Expenses & Projections'!G:G,"Irregular")+SUMIFS('Payroll Expenses & Projections'!I:I,'Payroll Expenses & Projections'!F:F,M42,'Payroll Expenses & Projections'!G:G,"Summer")+SUMIFS('Payroll Expenses & Projections'!I:I,'Payroll Expenses & Projections'!F:F,M42,'Payroll Expenses & Projections'!G:G,"Students") -> 0 | O42: =SUMIFS('Payroll Expenses & Projections'!I:I,'Payroll Expenses & Projections'!F:F,M42,'Payroll Expenses & Projections'!G:G,"Z-Fringe")+SUMIFS('Payroll Expenses & Projections'!I:I,'Payroll Expenses & Projections'!F:F,M42,'Payroll Expenses & Projections'!G:G,"HealthIns") -> 0 | P42: =SUMIFS('Payroll Expenses & Projections'!J:J,'Payroll Expenses & Projections'!F:F,M42,'Payroll Expenses & Projections'!G:G,"Regular")+SUMIFS('Payroll Expenses & Projections'!J:J,'Payroll Expenses & Projections'!F:F,M42,'Payroll Expenses & Projections'!G:G,"Irregular")+SUMIFS('Payroll Expenses & Projections'!J:J,'Payroll Expenses & Projections'!F:F,M42,'Payroll Expenses & Projections'!G:G,"Summer")+SUMIFS('Payroll Expenses & Projections'!J:J,'Payroll Expenses & Projections'!F:F,M42,'Payroll Expenses & Projections'!G:G,"Students") -> 0 | Q42: =SUMIFS('Payroll Expenses & Projections'!J:J,'Payroll Expenses & Projections'!F:F,M42,'Payroll Expenses & Projections'!G:G,"Z-Fringe")+SUMIFS('Payroll Expenses & Projections'!J:J,'Payroll Expenses & Projections'!F:F,M42,'Payroll Expenses & Projections'!G:G,"HealthIns") -> 0
N43: =SUMIFS('Payroll Expenses & Projections'!I:I,'Payroll Expenses & Projections'!F:F,M43,'Payroll Expenses & Projections'!G:G,"Regular")+SUMIFS('Payroll Expenses & Projections'!I:I,'Payroll Expenses & Projections'!F:F,M43,'Payroll Expenses & Projections'!G:G,"Irregular")+SUMIFS('Payroll Expenses & Projections'!I:I,'Payroll Expenses & Projections'!F:F,M43,'Payroll Expenses & Projections'!G:G,"Summer")+SUMIFS('Payroll Expenses & Projections'!I:I,'Payroll Expenses & Projections'!F:F,M43,'Payroll Expenses & Projections'!G:G,"Students") -> 0 | O43: =SUMIFS('Payroll Expenses & Projections'!I:I,'Payroll Expenses & Projections'!F:F,M43,'Payroll Expenses & Projections'!G:G,"Z-Fringe")+SUMIFS('Payroll Expenses & Projections'!I:I,'Payroll Expenses & Projections'!F:F,M43,'Payroll Expenses & Projections'!G:G,"HealthIns") -> 0 | P43: =SUMIFS('Payroll Expenses & Projections'!J:J,'Payroll Expenses & Projections'!F:F,M43,'Payroll Expenses & Projections'!G:G,"Regular")+SUMIFS('Payroll Expenses & Projections'!J:J,'Payroll Expenses & Projections'!F:F,M43,'Payroll Expenses & Projections'!G:G,"Irregular")+SUMIFS('Payroll Expenses & Projections'!J:J,'Payroll Expenses & Projections'!F:F,M43,'Payroll Expenses & Projections'!G:G,"Summer")+SUMIFS('Payroll Expenses & Projections'!J:J,'Payroll Expenses & Projections'!F:F,M43,'Payroll Expenses & Projections'!G:G,"Students") -> 0 | Q43: =SUMIFS('Payroll Expenses & Projections'!J:J,'Payroll Expenses & Projections'!F:F,M43,'Payroll Expenses & Projections'!G:G,"Z-Fringe")+SUMIFS('Payroll Expenses & Projections'!J:J,'Payroll Expenses & Projections'!F:F,M43,'Payroll Expenses & Projections'!G:G,"HealthIns") -> 0
N44: =SUMIFS('Payroll Expenses & Projections'!I:I,'Payroll Expenses & Projections'!F:F,M44,'Payroll Expenses & Projections'!G:G,"Regular")+SUMIFS('Payroll Expenses & Projections'!I:I,'Payroll Expenses & Projections'!F:F,M44,'Payroll Expenses & Projections'!G:G,"Irregular")+SUMIFS('Payroll Expenses & Projections'!I:I,'Payroll Expenses & Projections'!F:F,M44,'Payroll Expenses & Projections'!G:G,"Summer")+SUMIFS('Payroll Expenses & Projections'!I:I,'Payroll Expenses & Projections'!F:F,M44,'Payroll Expenses & Projections'!G:G,"Students") -> 0 | O44: =SUMIFS('Payroll Expenses & Projections'!I:I,'Payroll Expenses & Projections'!F:F,M44,'Payroll Expenses & Projections'!G:G,"Z-Fringe")+SUMIFS('Payroll Expenses & Projections'!I:I,'Payroll Expenses & Projections'!F:F,M44,'Payroll Expenses & Projections'!G:G,"HealthIns") -> 0 | P44: =SUMIFS('Payroll Expenses & Projections'!J:J,'Payroll Expenses & Projections'!F:F,M44,'Payroll Expenses & Projections'!G:G,"Regular")+SUMIFS('Payroll Expenses & Projections'!J:J,'Payroll Expenses & Projections'!F:F,M44,'Payroll Expenses & Projections'!G:G,"Irregular")+SUMIFS('Payroll Expenses & Projections'!J:J,'Payroll Expenses & Projections'!F:F,M44,'Payroll Expenses & Projections'!G:G,"Summer")+SUMIFS('Payroll Expenses & Projections'!J:J,'Payroll Expenses & Projections'!F:F,M44,'Payroll Expenses & Projections'!G:G,"Students") -> 0 | Q44: =SUMIFS('Payroll Expenses & Projections'!J:J,'Payroll Expenses & Projections'!F:F,M44,'Payroll Expenses & Projections'!G:G,"Z-Fringe")+SUMIFS('Payroll Expenses & Projections'!J:J,'Payroll Expenses & Projections'!F:F,M44,'Payroll Expenses & Projections'!G:G,"HealthIns") -> 0
N45: =SUMIFS('Payroll Expenses & Projections'!I:I,'Payroll Expenses & Projections'!F:F,M45,'Payroll Expenses & Projections'!G:G,"Regular")+SUMIFS('Payroll Expenses & Projections'!I:I,'Payroll Expenses & Projections'!F:F,M45,'Payroll Expenses & Projections'!G:G,"Irregular")+SUMIFS('Payroll Expenses & Projections'!I:I,'Payroll Expenses & Projections'!F:F,M45,'Payroll Expenses & Projections'!G:G,"Summer")+SUMIFS('Payroll Expenses & Projections'!I:I,'Payroll Expenses & Projections'!F:F,M45,'Payroll Expenses & Projections'!G:G,"Students") -> 0 | O45: =SUMIFS('Payroll Expenses & Projections'!I:I,'Payroll Expenses & Projections'!F:F,M45,'Payroll Expenses & Projections'!G:G,"Z-Fringe")+SUMIFS('Payroll Expenses & Projections'!I:I,'Payroll Expenses & Projections'!F:F,M45,'Payroll Expenses & Projections'!G:G,"HealthIns") -> 0 | P45: =SUMIFS('Payroll Expenses & Projections'!J:J,'Payroll Expenses & Projections'!F:F,M45,'Payroll Expenses & Projections'!G:G,"Regular")+SUMIFS('Payroll Expenses & Projections'!J:J,'Payroll Expenses & Projections'!F:F,M45,'Payroll Expenses & Projections'!G:G,"Irregular")+SUMIFS('Payroll Expenses & Projections'!J:J,'Payroll Expenses & Projections'!F:F,M45,'Payroll Expenses & Projections'!G:G,"Summer")+SUMIFS('Payroll Expenses & Projections'!J:J,'Payroll Expenses & Projections'!F:F,M45,'Payroll Expenses & Projections'!G:G,"Students") -> 0 | Q45: =SUMIFS('Payroll Expenses & Projections'!J:J,'Payroll Expenses & Projections'!F:F,M45,'Payroll Expenses & Projections'!G:G,"Z-Fringe")+SUMIFS('Payroll Expenses & Projections'!J:J,'Payroll Expenses & Projections'!F:F,M45,'Payroll Expenses & Projections'!G:G,"HealthIns") -> 0
N46: =SUMIFS('Payroll Expenses & Projections'!I:I,'Payroll Expenses & Projections'!F:F,M46,'Payroll Expenses & Projections'!G:G,"Regular")+SUMIFS('Payroll Expenses & Projections'!I:I,'Payroll Expenses & Projections'!F:F,M46,'Payroll Expenses & Projections'!G:G,"Irregular")+SUMIFS('Payroll Expenses & Projections'!I:I,'Payroll Expenses & Projections'!F:F,M46,'Payroll Expenses & Projections'!G:G,"Summer")+SUMIFS('Payroll Expenses & Projections'!I:I,'Payroll Expenses & Projections'!F:F,M46,'Payroll Expenses & Projections'!G:G,"Students") -> 0 | O46: =SUMIFS('Payroll Expenses & Projections'!I:I,'Payroll Expenses & Projections'!F:F,M46,'Payroll Expenses & Projections'!G:G,"Z-Fringe")+SUMIFS('Payroll Expenses & Projections'!I:I,'Payroll Expenses & Projections'!F:F,M46,'Payroll Expenses & Projections'!G:G,"HealthIns") -> 0 | P46: =SUMIFS('Payroll Expenses & Projections'!J:J,'Payroll Expenses & Projections'!F:F,M46,'Payroll Expenses & Projections'!G:G,"Regular")+SUMIFS('Payroll Expenses & Projections'!J:J,'Payroll Expenses & Projections'!F:F,M46,'Payroll Expenses & Projections'!G:G,"Irregular")+SUMIFS('Payroll Expenses & Projections'!J:J,'Payroll Expenses & Projections'!F:F,M46,'Payroll Expenses & Projections'!G:G,"Summer")+SUMIFS('Payroll Expenses & Projections'!J:J,'Payroll Expenses & Projections'!F:F,M46,'Payroll Expenses & Projections'!G:G,"Students") -> 0 | Q46: =SUMIFS('Payroll Expenses & Projections'!J:J,'Payroll Expenses & Projections'!F:F,M46,'Payroll Expenses & Projections'!G:G,"Z-Fringe")+SUMIFS('Payroll Expenses & Projections'!J:J,'Payroll Expenses & Projections'!F:F,M46,'Payroll Expenses & Projections'!G:G,"HealthIns") -> 0
N47: =SUMIFS('Payroll Expenses & Projections'!I:I,'Payroll Expenses & Projections'!F:F,M47,'Payroll Expenses & Projections'!G:G,"Regular")+SUMIFS('Payroll Expenses & Projections'!I:I,'Payroll Expenses & Projections'!F:F,M47,'Payroll Expenses & Projections'!G:G,"Irregular")+SUMIFS('Payroll Expenses & Projections'!I:I,'Payroll Expenses & Projections'!F:F,M47,'Payroll Expenses & Projections'!G:G,"Summer")+SUMIFS('Payroll Expenses & Projections'!I:I,'Payroll Expenses & Projections'!F:F,M47,'Payroll Expenses & Projections'!G:G,"Students") -> 0 | O47: =SUMIFS('Payroll Expenses & Projections'!I:I,'Payroll Expenses & Projections'!F:F,M47,'Payroll Expenses & Projections'!G:G,"Z-Fringe")+SUMIFS('Payroll Expenses & Projections'!I:I,'Payroll Expenses & Projections'!F:F,M47,'Payroll Expenses & Projections'!G:G,"HealthIns") -> 0 | P47: =SUMIFS('Payroll Expenses & Projections'!J:J,'Payroll Expenses & Projections'!F:F,M47,'Payroll Expenses & Projections'!G:G,"Regular")+SUMIFS('Payroll Expenses & Projections'!J:J,'Payroll Expenses & Projections'!F:F,M47,'Payroll Expenses & Projections'!G:G,"Irregular")+SUMIFS('Payroll Expenses & Projections'!J:J,'Payroll Expenses & Projections'!F:F,M47,'Payroll Expenses & Projections'!G:G,"Summer")+SUMIFS('Payroll Expenses & Projections'!J:J,'Payroll Expenses & Projections'!F:F,M47,'Payroll Expenses & Projections'!G:G,"Students") -> 0 | Q47: =SUMIFS('Payroll Expenses & Projections'!J:J,'Payroll Expenses & Projections'!F:F,M47,'Payroll Expenses & Projections'!G:G,"Z-Fringe")+SUMIFS('Payroll Expenses & Projections'!J:J,'Payroll Expenses & Projections'!F:F,M47,'Payroll Expenses & Projections'!G:G,"HealthIns") -> 0
N48: =SUMIFS('Payroll Expenses & Projections'!I:I,'Payroll Expenses & Projections'!F:F,M48,'Payroll Expenses & Projections'!G:G,"Regular")+SUMIFS('Payroll Expenses & Projections'!I:I,'Payroll Expenses & Projections'!F:F,M48,'Payroll Expenses & Projections'!G:G,"Irregular")+SUMIFS('Payroll Expenses & Projections'!I:I,'Payroll Expenses & Projections'!F:F,M48,'Payroll Expenses & Projections'!G:G,"Summer")+SUMIFS('Payroll Expenses & Projections'!I:I,'Payroll Expenses & Projections'!F:F,M48,'Payroll Expenses & Projections'!G:G,"Students") -> 0 | O48: =SUMIFS('Payroll Expenses & Projections'!I:I,'Payroll Expenses & Projections'!F:F,M48,'Payroll Expenses & Projections'!G:G,"Z-Fringe")+SUMIFS('Payroll Expenses & Projections'!I:I,'Payroll Expenses & Projections'!F:F,M48,'Payroll Expenses & Projections'!G:G,"HealthIns") -> 0 | P48: =SUMIFS('Payroll Expenses & Projections'!J:J,'Payroll Expenses & Projections'!F:F,M48,'Payroll Expenses & Projections'!G:G,"Regular")+SUMIFS('Payroll Expenses & Projections'!J:J,'Payroll Expenses & Projections'!F:F,M48,'Payroll Expenses & Projections'!G:G,"Irregular")+SUMIFS('Payroll Expenses & Projections'!J:J,'Payroll Expenses & Projections'!F:F,M48,'Payroll Expenses & Projections'!G:G,"Summer")+SUMIFS('Payroll Expenses & Projections'!J:J,'Payroll Expenses & Projections'!F:F,M48,'Payroll Expenses & Projections'!G:G,"Students") -> 0 | Q48: =SUMIFS('Payroll Expenses & Projections'!J:J,'Payroll Expenses & Projections'!F:F,M48,'Payroll Expenses & Projections'!G:G,"Z-Fringe")+SUMIFS('Payroll Expenses & Projections'!J:J,'Payroll Expenses & Projections'!F:F,M48,'Payroll Expenses & Projections'!G:G,"HealthIns") -> 0
N49: =SUMIFS('Payroll Expenses & Projections'!I:I,'Payroll Expenses & Projections'!F:F,M49,'Payroll Expenses & Projections'!G:G,"Regular")+SUMIFS('Payroll Expenses & Projections'!I:I,'Payroll Expenses & Projections'!F:F,M49,'Payroll Expenses & Projections'!G:G,"Irregular")+SUMIFS('Payroll Expenses & Projections'!I:I,'Payroll Expenses & Projections'!F:F,M49,'Payroll Expenses & Projections'!G:G,"Summer")+SUMIFS('Payroll Expenses & Projections'!I:I,'Payroll Expenses & Projections'!F:F,M49,'Payroll Expenses & Projections'!G:G,"Students") -> 0 | O49: =SUMIFS('Payroll Expenses & Projections'!I:I,'Payroll Expenses & Projections'!F:F,M49,'Payroll Expenses & Projections'!G:G,"Z-Fringe")+SUMIFS('Payroll Expenses & Projections'!I:I,'Payroll Expenses & Projections'!F:F,M49,'Payroll Expenses & Projections'!G:G,"HealthIns") -> 0 | P49: =SUMIFS('Payroll Expenses & Projections'!J:J,'Payroll Expenses & Projections'!F:F,M49,'Payroll Expenses & Projections'!G:G,"Regular")+SUMIFS('Payroll Expenses & Projections'!J:J,'Payroll Expenses & Projections'!F:F,M49,'Payroll Expenses & Projections'!G:G,"Irregular")+SUMIFS('Payroll Expenses & Projections'!J:J,'Payroll Expenses & Projections'!F:F,M49,'Payroll Expenses & Projections'!G:G,"Summer")+SUMIFS('Payroll Expenses & Projections'!J:J,'Payroll Expenses & Projections'!F:F,M49,'Payroll Expenses & Projections'!G:G,"Students") -> 0 | Q49: =SUMIFS('Payroll Expenses & Projections'!J:J,'Payroll Expenses & Projections'!F:F,M49,'Payroll Expenses & Projections'!G:G,"Z-Fringe")+SUMIFS('Payroll Expenses & Projections'!J:J,'Payroll Expenses & Projections'!F:F,M49,'Payroll Expenses & Projections'!G:G,"HealthIns") -> 0

Sheet Budget Detail
A2: Boise State University
A3: DRAFT -- Internal Budget Estimate -- DRAFT
A4: Sponsor (originating and primary): | B4: IGEM
A5: PI: | B5: Dan Deng
A6: Department and College: | B6: COEN
A7: OSP #: | B7: 9937 | G7: Total Project
D8: Date: 07/1/2021- 6/30/2022 | G8: Costs
A9: Budget Categories | B9: % | C9: Mths | D9: Year 1 | E9: Total | F9: Cost Share | G9: (Total + Cost Share) | M9: 1% PI Salary | N9: Fringe Benefits
H10: Salary | I10: Monthly | J10: Contract | L10: Employee ID (PI, Co-PI)
A11: Salaries (with 3% increase per year for PI, Co-PI, Undergraduate Research Assistants, & Research Technician)
A12: PI Academic Year | B12: 1 | C12: 0 | D12: 0 | E12: 0 | F12: 0 | G12: 0 | H12: 0 | I12: 0 | J12: 9 | K12: months | M12: 0 | N12: 0
A13: PI Summer | B13: 1 | C13: 0.1 | D13: 0 | E13: 0 | G13: 0 | H13: 0 | I13: 0 | J13: 9 | K13: months
A14: PI Supplemental Pay: generally not allowable; see note below * | B14: 1 | C14: 0 | D14: 0 | E14: 0 | G14: 0 | H14: 0 | I14: 0 | J14: 9 | K14: months
A15: Co-PI Academic Year | B15: 1 | C15: 0 | D15: 0 | E15: 0 | G15: 0 | H15: 0 | I15: 0 | J15: 9 | K15: months
A16: Co-PI Summer | B16: 1 | C16: 0 | D16: 0 | E16: 0 | G16: 0 | H16: 0 | I16: 0 | J16: 9 | K16: months
A17: Co-PI Supplemental Pay: generally not allowable; see note below * | B17: 1 | C17: 0 | D17: 0 | E17: 0 | G17: 0 | H17: 0 | I17: 0 | J17: 9 | K17: months
A18: Graduate Research Assistant Academic Year | B18: 1 | C18: 6 | D18: 12206 | E18: 12206 | G18: 12000 | H18: 24000 | I18: 2000 | J18: 12
A19: Graduate Research Assistant Summer | B19: 1 | E19: 0 | G19: 0 | H19: 24000 | I19: 2000 | J19: 12
B21: 1 | E21: 0 | G21: 0 | H21: 0 | I21: 0 | J21: 9
A22: Research Technician | B22: 1 | C22: 12 | D22: 0 | E22: 0 | G22: 0 | H22: 0 | I22: 0 | J22: 12
A23: Total Salaries | D23: 12206 | E23: 12206 | F23: 0 | G23: 12206 | L23: 6000
A24: * Before budgeting Supplemental Pay, review BSU Policy 7195 regarding the rules and restrictions on including Supplemental Pay in a sponsored project. Contact your Research Administrator with questions. Click the following link to review policy:
A25: https://policy.boisestate.edu/human-resources/supplemental-pay/
A27: Fringe Benefits | C27: %
A28: PI Academic Year | C28: 0 | D28: 0 | E28: 0 | F28: 0 | G28: 0
A29: PI Summer | C29: 0 | D29: 0 | E29: 0 | G29: 0
A30: PI Supplemental Pay | C30: 0 | D30: 0 | E30: 0 | G30: 0
A31: Co-PI Academic Year | C31: 0 | D31: 0 | E31: 0 | G31: 0
A32: Co-PI Summer | C32: 0 | D32: 0 | E32: 0 | G32: 0
A33: Co-PI Supplemental Pay | C33: 0 | D33: 0 | E33: 0 | G33: 0
A34: Graduate Research Assistant Academic Year (estimate based on an average rate) | C34: 0.04 | D34: 489 | E34: 489 | G34: 489
A35: Graduate Research Assistant Summer (estimate based on an average rate) | C35: 0.1 | E35: 0 | G35: 0
A36: Graduate Research Assistant: health insurance (estimated 5% increase per year) | C36: NA | D36: 1770.5 | E36: 1770.5 | G36: 1770.5 | H36: Effective August 1, 2019: $3372
A37: Undergraduate Assistant (estimate based on an average rate) | C37: 0.1 | E37: 0 | G37: 0
A38: Research Technician | C38: 0 | D38: 0 | E38: 0 | G38: 0
A39: Total Fringe Benefits | D39: 2259.5 | E39: 2259.5 | F39: 0 | G39: 2259.5
A40: * Click on the following link and search under "General Information" for current fringe benefit rates:
A41: https://research.boisestate.edu/osp/proposal-preparation/
A43: Other Expenses
A44: Materials and Supplies | D44: 0 | E44: 0 | G44: 0
A45: Publication/Dissemination | D45: 0 | E45: 0 | G45: 0
A46: Consultant Services | D46: 0 | E46: 0 | G46: 0
A47: Recharge Center Services | D47: 0 | E47: 0 | G47: 0
A48: Total Other Expenses | D48: 0 | E48: 0 | F48: 0 | G48: 0
A50: Travel
A51: Domestic Travel | D51: 0 | E51: 0 | G51: 0
A52: Foreign Travel | D52: 0 | E52: 0 | G52: 0
A53: Total Travel | D53: 0 | E53: 0 | F53: 0 | G53: 0
A55: Student Costs | H55: Effective August 2019: $4823/Semester, $9646/Academic Yr., $470/Credit
A56: Graduate Student Fee Remission, PhD student (typically includes academic year and six summer credits) | D56: 0 | E56: 0 | G56: 0
A57: Graduate Student Fee Remission, Masters student, Academic Year | D57: 0 | E57: 0 | G57: 0
A58: Total Student Costs | D58: 0 | E58: 0 | F58: 0 | G58: 0
A59: * Click on the following link and search under "General Information" for current tuition and fee rates:
A60: https://research.boisestate.edu/osp/proposal-preparation/
A62: Subawards (F&A on first $25K)
A63: Subaward portion up to $25K
A64: University X | D64: 0 | E64: 0 | G64: 0
A65: University Y | D65: 0 | E65: 0 | G65: 0
G66: 0
A67: Subtotal under $25K | D67: 0 | E67: 0 | F67: 0 | G67: 0
A69: Subaward portion over $25K
A70: University X | D70: 0 | E70: 0 | G70: 0
A71: University Y | D71: 0 | E71: 0 | G71: 0
G72: 0
A73: Subtotal over $25K | D73: 0 | E73: 0 | F73: 0 | G73: 0
A74: Total Subawards | D74: 0 | E74: 0 | F74: 0 | G74: 0
A76: Equipment over 5K
A77: MTS Test System | D77: 85534 | E77: 85534 | G77: 85534
D78: 0 | E78: 0 | G78: 0
A79: Total Capital | D79: 85534 | E79: 85534 | F79: 0 | G79: 85534
A82: Total Direct Costs | D82: 99999.5 | E82: 99999.5 | F82: 0 | G82: 99999.5
A84: Base for Indirect Calculation | D84: 14465.5 | E84: 14465.5 | F84: 0 | G84: 14465.5
A86: Facilities and Administrative Costs (F&A, Indirect Costs) MTDC * | C86: 0 | D86: 0 | E86: 0 | F86: 0 | G86: 0
A88: Total Costs | D88: 99999.5 | E88: 99999.5 | F88: 0 | G88: 99999.5
A90: * Click the following link for more information on F&A:
A91: https://research.boisestate.edu/osp/proposal-preparation/facilities-and-administrative-costs/
A93: Proposal Budget Notes:

Sheet Payroll Expenses & Projections
A1: Project End Date: | B1: ='2000002083'!G2 -> 2022-06-30
A2: Notes | B2: EAF/GFDF # | C2: EAF/GFDF Start | D2: EAF/GFDF End | E2: Employee ID | F2: Employee Name | G2: GROUP | H2: Total | I2: Actual to Date | J2: Projection | K2: 2021-06-26 | L2: =K2+14 -> 2021-07-10 | M2: =L2+14 -> 2021-07-24 | N2: 2021-08-07 | O2: 2021-08-21 | P2: 2021-09-04 | Q2: 2021-09-18 | R2: 2021-10-02 | S2: 2021-10-16 | T2: 2021-10-30 | U2: 2021-11-13 | V2: 2021-11-27 | W2: 2021-12-11 | X2: 2021-12-25 | Y2: 2022-01-08 | Z2: 2022-01-22 | AA2: 2022-02-05 | AB2: 2022-02-19 | AC2: 2022-03-05 | AD2: 2022-03-19 | AE2: 2022-04-02 | AF2: 2022-04-16 | AG2: 2022-04-30 | AH2: 2022-05-14 | AI2: 2022-05-28 | AJ2: 2022-06-11 | AK2: 2022-06-25 | AL2: 2022-07-09 | AM2: 2022-07-23 | AN2: 2022-08-06 | AO2: 2022-08-20 | AP2: 2022-09-03 | AQ2: 2022-09-17 | AR2: 2022-10-01 | AS2: 2022-10-15 | AT2: 2022-10-29 | AU2: 2022-11-12 | AV2: 2022-11-26 | AW2: 2022-12-10 | AX2: 2022-12-24 | AY2: 2023-01-07 | AZ2: 2023-01-21 | BA2: 2023-02-04 | BB2: 2023-02-18 | BC2: 2023-03-04 | BD2: 2023-03-18 | BE2: 2023-04-01 | BF2: 2023-04-15 | BG2: 2023-04-29 | BH2: 2023-05-13 | BI2: 2023-05-27 | BJ2: 2023-06-10 | BK2: 2023-06-24 | BL2: 2023-07-08 | BM2: 2023-07-22 | BN2: 2023-08-05 | BO2: 2023-08-19 | BP2: 2023-09-02 | BQ2: 2023-09-16 | BR2: 2023-09-30 | BS2: 2023-10-14 | BT2: 2023-10-28 | BU2: 2023-11-11 | BV2: 2023-11-25 | BW2: 2023-12-09 | BX2: 2023-12-23 | BY2: =BX2+14 -> 2024-01-06 | BZ2: 2024-01-20 | CA2: 2024-02-03 | CB2: 2024-02-17 | CC2: 2024-03-02 | CD2: 2024-03-16 | CE2: 2024-03-30 | CF2: 2024-04-13 | CG2: 2024-04-27 | CH2: 2024-05-11 | CI2: 2024-05-25 | CJ2: 2024-06-08 | CK2: 2024-06-22 | CL2: 2024-07-06 | CM2: 2024-07-20 | CN2: 2024-08-03 | CO2: 2024-08-17 | CP2: 2024-08-31 | CQ2: 2024-09-14 | CR2: 2024-09-28 | CS2: 2024-10-12 | CT2: 2024-10-26 | CU2: 2024-11-09 | CV2: 2024-11-23 | CW2: 2024-12-07 | CX2: 2024-12-21 | CY2: 2025-01-04 | CZ2: 2025-01-18 | DA2: 2025-02-01 | DB2: 2025-02-15 | DC2: 2025-03-01 | DD2: 2025-03-15 | DE2: 2025-03-29 | DF2: 2025-04-12 | DG2: 2025-04-26 | DH2: 2025-05-10 | DI2: 2025-05-24 | DJ2: 2025-06-07 | DK2: 2025-06-21 | DL2: 2025-07-05 | DM2: 2025-07-19 | DN2: 2025-08-02 | DO2: 2025-08-16 | DP2: 2025-08-30 | DQ2: 2025-09-13 | DR2: 2025-09-27 | DS2: 2025-10-11 | DT2: 2025-10-25 | DU2: 2025-11-08 | DV2: 2025-11-22 | DW2: 2025-12-06 | DX2: 2025-12-20 | DY2: 2026-01-03 | DZ2: 2026-01-17 | EA2: 2026-01-31 | EB2: 2026-02-14 | EC2: 2026-02-28 | ED2: 2026-03-14 | EE2: 2026-03-28 | EF2: 2026-04-11 | EG2: 2026-04-25 | EH2: 2026-05-09 | EI2: 2026-05-23 | EJ2: 2026-06-06 | EK2: =EJ2+14 -> 2026-06-20 | EL2: 2026-07-04 | EM2: 2026-07-18 | EN2: 2026-08-01 | EO2: 2026-08-15 | EP2: 2026-08-29 | EQ2: 2026-09-12 | ER2: 2026-09-26 | ES2: 2026-10-10 | ET2: 2026-10-24 | EU2: 2026-11-07 | EV2: 2026-11-21 | EW2: 2026-12-05 | EX2: 2026-12-19 | EY2: 2027-01-02 | EZ2: 2027-01-16 | FA2: 2027-01-30 | FB2: 2027-02-13 | FC2: 2027-02-27 | FD2: 2027-03-13 | FE2: 2027-03-27 | FF2: 2027-04-10 | FG2: 2027-04-24 | FH2: 2027-05-08 | FI2: 2027-05-22 | FJ2: 2027-06-05 | FK2: 2027-06-19 | FL2: 2027-07-03 | FM2: 2027-07-17 | FN2: 2027-07-31 | FO2: 2027-08-14 | FP2: 2027-08-28 | FQ2: 2027-09-11 | FR2: 2027-09-25 | FS2: 2027-10-09 | FT2: 2027-10-23 | FU2: 2027-11-06 | FV2: 2027-11-20 | FW2: 2027-12-04 | FX2: 2027-12-18 | FY2: 2028-01-01 | FZ2: 2028-01-15 | GA2: 2028-01-29 | GB2: 2028-02-12 | GC2: 2028-02-26 | GD2: 2028-03-11 | GE2: 2028-03-25 | GF2: 2028-04-08 | GG2: 2028-04-22 | GH2: 2028-05-06 | GI2: 2028-05-20 | GJ2: 2028-06-03 | GK2: 2028-06-17 | GL2: 2028-07-01 | GM2: 2028-07-15 | GN2: 2028-07-29 | GO2: 2028-08-12 | GP2: 2028-08-26 | GQ2: 2028-09-09 | GR2: 2028-09-23 | GS2: 2028-10-07 | GT2: 2028-10-21 | GU2: 2028-11-04 | GV2: 2028-11-18 | GW2: =GV2+14 -> 2028-12-02 | GX2: 2028-12-16 | GY2: 2028-12-30 | GZ2: 2029-01-13 | HA2: 2029-01-27 | HB2: 2029-02-10 | HC2: 2029-02-24 | HD2: 2029-03-10 | HE2: 2029-03-24 | HF2: 2029-04-07 | HG2: 2029-04-21 | HH2: 2029-05-05 | HI2: 2029-05-19 | HJ2: 2029-06-02 | HK2: 2029-06-16 | HL2: 2029-06-30 | HM2: 2029-07-14 | HN2: 2029-07-28 | HO2: 2029-08-11 | HP2: 2029-08-25 | HQ2: 2029-09-08 | HR2: 2029-09-22 | HS2: 2029-10-06 | HT2: 2029-10-20 | HU2: 2029-11-03 | HV2: 2029-11-17 | HW2: 2029-12-01 | HX2: 2029-12-15 | HY2: 2029-12-29 | HZ2: 2030-01-12 | IA2: 2030-01-26 | IB2: 2030-02-09 | IC2: 2030-02-23 | ID2: 2030-03-09 | IE2: 2030-03-23 | IF2: 2030-04-06 | IG2: 2030-04-20 | IH2: 2030-05-04 | II2: 2030-05-18 | IJ2: 2030-06-01 | IK2: 2030-06-15 | IL2: 2030-06-29 | IM2: 2030-07-13 | IN2: 2030-07-27 | IO2: 2030-08-10 | IP2: 2030-08-24 | IQ2: 2030-09-07 | IR2: 2030-09-21 | IS2: 2030-10-05 | IT2: 2030-10-19 | IU2: 2030-11-02 | IV2: 2030-11-16 | IW2: 2030-11-30 | IX2: 2030-12-14 | IY2: 2030-12-28 | IZ2: 2031-01-11 | JA2: 2031-01-25 | JB2: 2031-02-08 | JC2: 2031-02-22 | JD2: 2031-03-08 | JE2: 2031-03-22 | JF2: 2031-04-05 | JG2: 2031-04-19 | JH2: 2031-05-03 | JI2: =JH2+14 -> 2031-05-17 | JJ2: 2031-05-31 | JK2: 2031-06-14 | JL2: 2031-06-28 | JM2: 2031-07-12 | JN2: 2031-07-26 | JO2: 2031-08-09 | JP2: 2031-08-23 | JQ2: 2031-09-06 | JR2: 2031-09-20 | JS2: 2031-10-04 | JT2: 2031-10-18 | JU2: 2031-11-01 | JV2: 2031-11-15 | JW2: 2031-11-29 | JX2: 2031-12-13 | JY2: 2031-12-27 | JZ2: 2032-01-10 | KA2: 2032-01-24 | KB2: 2032-02-07 | KC2: 2032-02-21 | KD2: 2032-03-06 | KE2: 2032-03-20 | KF2: 2032-04-03 | KG2: 2032-04-17 | KH2: 2032-05-01 | KI2: 2032-05-15 | KJ2: 2032-05-29 | KK2: 2032-06-12 | KL2: 2032-06-26 | KM2: 2032-07-10
A3: 20hrs/wk @ $12/hr at 80% | B3: NSH | C3: 2022-01-01 | D3: 2022-06-30 | E3: 114084084 | F3: Draper, Alejandro | G3: Students | H3: =SUM(K3:XFD3) -> 0 | I3: =H3-J3 -> 0 | J3: =SUM(L3:XFD3) -> 0 | R3: 0 | S3: 0 | T3: 0 | U3: 0 | V3: 0 | W3: 0 | X3: 0 | Y3: 0 | Z3: 0 | AA3: 0 | AB3: 0 | AC3: 0 | AD3: 0 | AE3: 0 | AF3: 0 | AG3: 0 | AH3: 0 | AI3: 0 | AJ3: 0 | AK3: 0 | AL3: 0 | AM3: 0
E4: 114084084 | F4: Draper, Alejandro | G4: Z-Fringe | H4: 0 | I4: =H4-J4 -> 0 | J4: =SUM(L4:XFD4) -> 0 | R4: 0 | S4: 0 | T4: 0 | U4: 0 | V4: 0 | W4: 0 | X4: 0 | Y4: 0 | Z4: 0 | AA4: 0 | AB4: 0 | AC4: 0 | AD4: 0 | AE4: 0 | AF4: 0 | AG4: 0 | AH4: 0 | AI4: 0 | AJ4: 0 | AK4: 0 | AL4: 0 | AM4: 0
H5: 0 | I5: 0 | J5: 0 | R5: 0 | S5: 0 | T5: 0 | U5: 0 | V5: 0 | W5: 0 | X5: 0 | Y5: 0 | Z5: 0 | AA5: 0 | AB5: 0 | AC5: 0 | AD5: 0 | AE5: 0 | AF5: 0 | AG5: 0 | AH5: 0 | AI5: 0 | AJ5: 0 | AK5: 0 | AL5: 0 | AM5: 0
H6: 0 | I6: 0 | J6: 0 | R6: 0 | S6: 0 | T6: 0 | U6: 0 | V6: 0 | W6: 0 | X6: 0 | Y6: 0 | Z6: 0 | AA6: 0 | AB6: 0 | AC6: 0 | AD6: 0 | AE6: 0 | AF6: 0 | AG6: 0 | AH6: 0 | AI6: 0 | AJ6: 0 | AK6: 0 | AL6: 0 | AM6: 0
H7: 0 | I7: 0 | J7: 0 | R7: 0 | S7: 0 | T7: 0 | U7: 0 | V7: 0 | W7: 0 | X7: 0 | Y7: 0 | Z7: 0 | AA7: 0 | AB7: 0 | AC7: 0 | AD7: 0 | AE7: 0 | AF7: 0 | AG7: 0 | AH7: 0 | AI7: 0 | AJ7: 0 | AK7: 0 | AL7: 0 | AM7: 0
H8: 0 | I8: 0 | J8: 0 | R8: 0 | S8: 0 | T8: 0 | U8: 0 | V8: 0 | W8: 0 | X8: 0 | Y8: 0 | Z8: 0 | AA8: 0 | AB8: 0 | AC8: 0 | AD8: 0 | AE8: 0 | AF8: 0 | AG8: 0 | AH8: 0 | AI8: 0 | AJ8: 0 | AK8: 0 | AL8: 0 | AM8: 0
H9: 0 | I9: 0 | J9: 0 | R9: 0 | S9: 0 | T9: 0 | U9: 0 | V9: 0 | W9: 0 | X9: 0 | Y9: 0 | Z9: 0 | AA9: 0 | AB9: 0 | AC9: 0 | AD9: 0 | AE9: 0 | AF9: 0 | AG9: 0 | AH9: 0 | AI9: 0 | AJ9: 0 | AK9: 0 | AL9: 0 | AM9: 0
H10: 0 | I10: 0 | J10: 0 | R10: 0 | S10: 0 | T10: 0 | U10: 0 | V10: 0 | W10: 0 | X10: 0 | Y10: 0 | Z10: 0 | AA10: 0 | AB10: 0 | AC10: 0 | AD10: 0 | AE10: 0 | AF10: 0 | AG10: 0 | AH10: 0 | AI10: 0 | AJ10: 0 | AK10: 0 | AL10: 0 | AM10: 0
H11: =SUM(K11:XFD11) -> 0 | I11: =H11-J11 -> 0 | J11: 0 | R11: 0 | S11: 0 | T11: 0 | U11: 0 | V11: 0 | W11: 0 | X11: 0 | Y11: 0 | Z11: 0 | AA11: 0 | AB11: 0 | AC11: 0 | AD11: 0 | AE11: 0 | AF11: 0 | AG11: 0 | AH11: 0 | AI11: 0 | AJ11: 0 | AK11: 0 | AL11: 0 | AM11: 0
G13: Totals | H13: =SUM(H3:H12) -> 0 | I13: =ROUND(SUM(I3:I12),2) -> 0 | J13: =SUM(J3:J12) -> 0
A18: Committed Effort
B19: AY/Summer
A20: Name - Months of Commited Effort | B20: Year | E20: Total Taken
A21: 1 month salary
A22: Taken
B23: =IF(B22=0,"-",B22/B21) -> - | C23: =IF(C22=0,"-",C22/C21) -> - | D23: - | E23: =SUM(B23:D23) -> 0
E24: months committed
C25: % committed effort taken | E25: =IF(E23=0,"-",E23/E24) -> -

Sheet Account Analysis Report
A3: BSU Account Analysis Report
A4: From Period: 1-10
A5: To Period: 12-23
A6: Report Date: 8/15/22 2:43 PM
A7: FISCAL_YEAR | B7: PERIOD | C7: PERIOD_NAME | D7: BALANCE_TYPE | E7: ENCUMBRANCE_TYPE | F7: FUND | G7: FUND_DESC | H7: DEPARTMENT | I7: COST_CENTER | J7: COST_CENTER_DESC | K7: NATURAL_ACCOUNT | L7: NATURAL_ACCOUNT_DESC | M7: SUPPLEMENTAL | N7: INTERFUND | O7: PROJECT | P7: FUTURE1 | Q7: NET_AMOUNT | R7: ACCTNG_DATE | S7: TRANSACTION_NUMBER | T7: APPLICATION_NAME | U7: JE_SOURCE_NAME | V7: JE_CATEGORY_NAME | W7: GL_BATCH_NAME | X7: GL_BATCH_DESC | Y7: GL_JE_NAME | Z7: SUBLEDGER_JE_DESC | AA7: GL_JE_DESC | AB7: GL_LINE_DESC | AC7: GL_LINE_NUMBER | AD7: SUBLEDGER_JE_LINE_DESC | AE7: PARTY_NAME | AF7: ADDITIONAL_INFO | AG7: ACCOUNTING_CODE_COMBINATION | AH7: CODE_COMBINATION_DESC
A8: 2022 | B8: 11 | C8: ‭11-22‬ | D8: Actual | F8: 1850 | G8: HERC Appropriated | H8: 13000 | I8: 1001004 | J8: Projects-04-Research | K8: 574100 | L8: Medical & Laboratory Supp | M8: 0 | N8: 0 | O8: 2000002083 | P8: 0 | Q8: 7462.25 | R8: 2022-05-23 | S8: ‭Pcard 05-2022~COEN MECH AND BIOMED~3630‬ | T8: Payables | U8: Payables | V8: Purchase Invoices | W8: Payables A 4278164000001 4278178 Y | Y8: 23-05-2022 Purchase Invoices | Z8: Invoice Description : ASHLEY HOLDEN~0772 , Supplier : Bank of America NA , Supplier Site : 1_Purchasing , Invoice Type : Standard | AC8: 3269 | AD8: MECHANICAL TECHNOLOGY IN~Sensor for material characterization - Deng Multiphysics~~TXN00672800 MECHANICAL TECHNOLOGY IN~Sensor for material characterization - Deng Multiphysics~~TXN00672800 | AE8: Bank of America NA | AG8: ‭1850.13000.1001004.574100.0000000000.0000.2000002083.0000000000‬ | AH8: HERC Appropriated.Mechanical & Biomedical E.Projects-04-Research.Medical & Laboratory Supp.Supplemental Default.Default Fund.Multiphysics Characteriza.Default Future 1 Finance
A9: 2022 | B9: 11 | C9: ‭11-22‬ | D9: Actual | F9: 1850 | G9: HERC Appropriated | H9: 13000 | I9: 1001004 | J9: Projects-04-Research | K9: 574100 | L9: Medical & Laboratory Supp | M9: 0 | N9: 0 | O9: 2000002083 | P9: 0 | Q9: 4052.65 | R9: 2022-05-23 | S9: ‭Pcard 05-2022~COEN MECH AND BIOMED~3629‬ | T9: Payables | U9: Payables | V9: Purchase Invoices | W9: Payables A 4278164000001 4278178 Y | Y9: 23-05-2022 Purchase Invoices | Z9: Invoice Description : ASHLEY HOLDEN~0772 , Supplier : Bank of America NA , Supplier Site : 1_Purchasing , Invoice Type : Standard | AC9: 3268 | AD9: MECHANICAL TECHNOLOGY IN~Sensor for material characterization - Deng Multiphysics~~TXN00672737 MECHANICAL TECHNOLOGY IN~Sensor for material characterization - Deng Multiphysics~~TXN00672737 | AE9: Bank of America NA | AG9: ‭1850.13000.1001004.574100.0000000000.0000.2000002083.0000000000‬ | AH9: HERC Appropriated.Mechanical & Biomedical E.Projects-04-Research.Medical & Laboratory Supp.Supplemental Default.Default Fund.Multiphysics Characteriza.Default Future 1 Finance
A10: 2022 | B10: 1 | C10: ‭1-22‬ | D10: Encumbrance | E10: Commitment | F10: 1850 | G10: HERC Appropriated | H10: 13000 | I10: 1001004 | J10: Projects-04-Research | K10: 685000 | L10: Medical & Laboratory Equi | M10: 0 | N10: 0 | O10: 2000002083 | P10: 0 | Q10: 85534 | R10: 2021-07-01 | S10: ‭REQ162439‬ | T10: Purchasing | U10: Purchasing | V10: Requisition | W10: Purchasing E 2799074000001 2799081 Y | Y10: 01-07-2021 Requisition300000000114940 | AC10: 11 | AG10: ‭1850.13000.1001004.685000.0000000000.0000.2000002083.0000000000‬ | AH10: HERC Appropriated.Mechanical & Biomedical E.Projects-04-Research.Medical & Laboratory Equi.Supplemental Default.Default Fund.Multiphysics Characteriza.Default Future 1 Finance
A11: 2022 | B11: 1 | C11: ‭1-22‬ | D11: Encumbrance | E11: Commitment | F11: 1850 | G11: HERC Appropriated | H11: 13000 | I11: 1001004 | J11: Projects-04-Research | K11: 685000 | L11: Medical & Laboratory Equi | M11: 0 | N11: 0 | O11: 2000002083 | P11: 0 | Q11: -85534 | R11: 2021-07-01 | S11: ‭PO138767‬ | T11: Purchasing | U11: Purchasing | V11: Purchase Order | W11: Purchasing E 2799074000001 2799081 Y | Y11: 01-07-2021 Purchase Order300000000114940 | AC11: 9 | AE11: MTS Systems Corporation | AG11: ‭1850.13000.1001004.685000.0000000000.0000.2000002083.0000000000‬ | AH11: HERC Appropriated.Mechanical & Biomedical E.Projects-04-Research.Medical & Laboratory Equi.Supplemental Default.Default Fund.Multiphysics Characteriza.Default Future 1 Finance
A12: 2022 | B12: 1 | C12: ‭1-22‬ | D12: Encumbrance | E12: Obligation | F12: 1850 | G12: HERC Appropriated | H12: 13000 | I12: 1001004 | J12: Projects-04-Research | K12: 685000 | L12: Medical & Laboratory Equi | M12: 0 | N12: 0 | O12: 2000002083 | P12: 0 | Q12: 85358.82 | R12: 2021-07-01 | S12: ‭PO138767‬ | T12: Purchasing | U12: Purchasing | V12: Purchase Order | W12: Purchasing E 2799074000001 2799081 Y | Y12: 01-07-2021 Purchase Order300000000114941 | AC12: 10 | AE12: MTS Systems Corporation | AG12: ‭1850.13000.1001004.685000.0000000000.0000.2000002083.0000000000‬ | AH12: HERC Appropriated.Mechanical & Biomedical E.Projects-04-Research.Medical & Laboratory Equi.Supplemental Default.Default Fund.Multiphysics Characteriza.Default Future 1 Finance
A13: 2022 | B13: 12 | C13: ‭12-22‬ | D13: Encumbrance | E13: Obligation | F13: 1850 | G13: HERC Appropriated | H13: 13000 | I13: 1001004 | J13: Projects-04-Research | K13: 685000 | L13: Medical & Laboratory Equi | M13: 0 | N13: 0 | O13: 2000002083 | P13: 0 | Q13: -85358.82 | R13: 2022-06-30 | S13: ‭‬ | U13: Spreadsheet | V13: Encumbrance CFWD | W13: Spreadsheet E 300000007661282 4451599 N | Y13: PO138767 -FY22 Encumbrance - Close Out Encumbrance CFWD300000000114941 | Z13: Journal Import 4451599: | AC13: 1 | AD13: Journal Import Created | AG13: ‭1850.13000.1001004.685000.0000000000.0000.2000002083.0000000000‬ | AH13: HERC Appropriated.Mechanical & Biomedical E.Projects-04-Research.Medical & Laboratory Equi.Supplemental Default.Default Fund.Multiphysics Characteriza.Default Future 1 Finance
A14: 2023 | B14: 1 | C14: ‭1-23‬ | D14: Encumbrance | E14: Obligation | F14: 1850 | G14: HERC Appropriated | H14: 13000 | I14: 1001004 | J14: Projects-04-Research | K14: 685000 | L14: Medical & Laboratory Equi | M14: 0 | N14: 0 | O14: 2000002083 | P14: 0 | Q14: 85358.82 | R14: 2022-07-01 | S14: ‭‬ | U14: Spreadsheet | V14: Encumbrance CFWD | W14: Spreadsheet E 300000007661282 4451655 N | Y14: PO138767 -FY23 Encumbrance - Carry Forward Encumbrance CFWD300000000114941 | Z14: Journal Import 4451655: | AC14: 1 | AD14: Journal Import Created | AG14: ‭1850.13000.1001004.685000.0000000000.0000.2000002083.0000000000‬ | AH14: HERC Appropriated.Mechanical & Biomedical E.Projects-04-Research.Medical & Laboratory Equi.Supplemental Default.Default Fund.Multiphysics Characteriza.Default Future 1 Finance

Sheet GA Fees (hidden)
D1: Fall | E1: Spring | F1: Fall | G1: Spring | H1: Fall | I1: Spring | J1: Fall | K1: Spring | L1: Fall | M1: Spring
B2: Student Name | C2: Notes
D3: 0 | E3: 0 | F3: 0 | G3: 0 | H3: 0 | I3: 0 | J3: 0 | K3: 0 | L3: 0 | M3: 0
D4: 0 | E4: 0 | F4: 0 | G4: 0 | H4: 0 | I4: 0 | J4: 0 | K4: 0 | L4: 0 | M4: 0
D5: 0 | E5: 0 | F5: 0 | G5: 0 | H5: 0 | I5: 0 | J5: 0 | K5: 0 | L5: 0 | M5: 0
D6: 0 | E6: 0 | F6: 0 | G6: 0 | H6: 0 | I6: 0 | J6: 0 | K6: 0 | L6: 0 | M6: 0
D7: 0 | E7: 0 | F7: 0 | G7: 0 | H7: 0 | I7: 0 | J7: 0 | K7: 0 | L7: 0 | M7: 0
D8: 0 | E8: 0 | F8: 0 | G8: 0 | H8: 0 | I8: 0 | J8: 0 | K8: 0 | L8: 0 | M8: 0
D9: 0 | E9: 0 | F9: 0 | G9: 0 | H9: 0 | I9: 0 | J9: 0 | K9: 0 | L9: 0 | M9: 0
D10: Projected | E10: =SUM(D3:D9)+SUM(E3:E9)+SUM(F3:F9)+SUM(G3:G9)+SUM(H3:H9)+SUM(I3:I9)+SUM(J3:J9)+SUM(K3:K9)+SUM(L3:L9)+SUM(M3:M9) -> 0
D11: Actual | E11: =SUM(D3:XFD9)-E10 -> 0

Sheet Travel Enc Summary (hidden)
A1: Traveler | F1: Traveler | K1: Traveler | P1: Traveler | U1: Traveler | Z1: Traveler | AE1: Traveler | AJ1: Traveler
A2: TA # | F2: TA # | K2: TA # | P2: TA # | U2: TA # | Z2: TA # | AE2: TA # | AJ2: TA #
A3: Location: | F3: Location: | K3: Location: | P3: Location: | U3: Location: | Z3: Location: | AE3: Location: | AJ3: Location:
A4: Purpose: | F4: Purpose: | K4: Purpose: | P4: Purpose: | U4: Purpose: | Z4: Purpose: | AE4: Purpose: | AJ4: Purpose:
A5: Travel Dates: | F5: Travel Dates: | K5: Travel Dates: | P5: Travel Dates: | U5: Travel Dates: | Z5: Travel Dates: | AE5: Travel Dates: | AJ5: Travel Dates:
B6: Prepaid | C6: Reimbursment | D6: Posted | G6: Prepaid | H6: Reimbursment | I6: Posted | L6: Prepaid | M6: Reimbursment | N6: Posted | Q6: Prepaid | R6: Reimbursment | S6: Posted | V6: Prepaid | W6: Reimbursment | X6: Posted | AA6: Prepaid | AB6: Reimbursment | AC6: Posted | AF6: Prepaid | AG6: Reimbursment | AH6: Posted | AK6: Prepaid | AL6: Reimbursment | AM6: Posted
A7: Registration | B7: 0 | C7: 0 | D7: 0 | F7: Registration | G7: 0 | H7: 0 | I7: 0 | K7: Registration | L7: 0 | M7: 0 | N7: 0 | P7: Registration | Q7: 0 | R7: 0 | S7: 0 | U7: Registration | V7: 0 | W7: 0 | X7: 0 | Z7: Registration | AA7: 0 | AB7: 0 | AC7: 0 | AE7: Registration | AF7: 0 | AG7: 0 | AH7: 0 | AJ7: Registration | AK7: 0 | AL7: 0 | AM7: 0
A8: Lodging | B8: 0 | C8: 0 | D8: 0 | F8: Lodging | G8: 0 | H8: 0 | I8: 0 | K8: Lodging | L8: 0 | M8: 0 | N8: 0 | P8: Lodging | Q8: 0 | R8: 0 | S8: 0 | U8: Lodging | V8: 0 | W8: 0 | X8: 0 | Z8: Lodging | AA8: 0 | AB8: 0 | AC8: 0 | AE8: Lodging | AF8: 0 | AG8: 0 | AH8: 0 | AJ8: Lodging | AK8: 0 | AL8: 0 | AM8: 0
A9: Airfare | B9: 0 | C9: 0 | D9: 0 | F9: Airfare | G9: 0 | H9: 0 | I9: 0 | K9: Airfare | L9: 0 | M9: 0 | N9: 0 | P9: Airfare | Q9: 0 | R9: 0 | S9: 0 | U9: Airfare | V9: 0 | W9: 0 | X9: 0 | Z9: Airfare | AA9: 0 | AB9: 0 | AC9: 0 | AE9: Airfare | AF9: 0 | AG9: 0 | AH9: 0 | AJ9: Airfare | AK9: 0 | AL9: 0 | AM9: 0
A10: Per Diem | B10: 0 | C10: 0 | D10: 0 | F10: Per Diem | G10: 0 | H10: 0 | I10: 0 | K10: Per Diem | L10: 0 | M10: 0 | N10: 0 | P10: Per Diem | Q10: 0 | R10: 0 | S10: 0 | U10: Per Diem | V10: 0 | W10: 0 | X10: 0 | Z10: Per Diem | AA10: 0 | AB10: 0 | AC10: 0 | AE10: Per Diem | AF10: 0 | AG10: 0 | AH10: 0 | AJ10: Per Diem | AK10: 0 | AL10: 0 | AM10: 0
A11: Transportation | B11: 0 | C11: 0 | D11: 0 | F11: Transportation | G11: 0 | H11: 0 | I11: 0 | K11: Transportation | L11: 0 | M11: 0 | N11: 0 | P11: Transportation | Q11: 0 | R11: 0 | S11: 0 | U11: Transportation | V11: 0 | W11: 0 | X11: 0 | Z11: Transportation | AA11: 0 | AB11: 0 | AC11: 0 | AE11: Transportation | AF11: 0 | AG11: 0 | AH11: 0 | AJ11: Transportation | AK11: 0 | AL11: 0 | AM11: 0
A12: Misc. | B12: 0 | C12: 0 | D12: 0 | F12: Misc. | G12: 0 | H12: 0 | I12: 0 | K12: Misc. | L12: 0 | M12: 0 | N12: 0 | P12: Misc. | Q12: 0 | R12: 0 | S12: 0 | U12: Misc. | V12: 0 | W12: 0 | X12: 0 | Z12: Misc. | AA12: 0 | AB12: 0 | AC12: 0 | AE12: Misc. | AF12: 0 | AG12: 0 | AH12: 0 | AJ12: Misc. | AK12: 0 | AL12: 0 | AM12: 0
B13: =SUM(B7:B12) -> 0 | C13: =SUM(C7:C12) -> 0 | D13: =SUM(D7:D12) -> 0 | G13: =SUM(G7:G12) -> 0 | H13: =SUM(H7:H12) -> 0 | I13: =SUM(I7:I12) -> 0 | L13: =SUM(L7:L12) -> 0 | M13: =SUM(M7:M12) -> 0 | N13: =SUM(N7:N12) -> 0 | Q13: =SUM(Q7:Q12) -> 0 | R13: =SUM(R7:R12) -> 0 | S13: =SUM(S7:S12) -> 0 | V13: =SUM(V7:V12) -> 0 | W13: =SUM(W7:W12) -> 0 | X13: =SUM(X7:X12) -> 0 | AA13: =SUM(AA7:AA12) -> 0 | AB13: =SUM(AB7:AB12) -> 0 | AC13: =SUM(AC7:AC12) -> 0 | AF13: =SUM(AF7:AF12) -> 0 | AG13: =SUM(AG7:AG12) -> 0 | AH13: =SUM(AH7:AH12) -> 0 | AK13: =SUM(AK7:AK12) -> 0 | AL13: =SUM(AL7:AL12) -> 0 | AM13: =SUM(AM7:AM12) -> 0
A15: ER Submitted: | F15: ER Submitted: | K15: ER Submitted: | P15: ER Submitted: | U15: ER Submitted: | Z15: ER Submitted: | AE15: ER Submitted: | AJ15: ER Submitted:
A20: Projected: | B20: =B13-D13+G13-I13+L13-N13+Q13-S13+V13-X13+AA13-AC13+AF13-AH13+AK13-AM13 -> 0

Sheet Travel Detail (hidden)

Sheet F&A

Sheet Notes

Sheet BARs & Mods
B2: Original | C2: Pending
B3: Budget | C3: BAR 4/23/22 | N3: Total
A4: Reg Sal | B4: ='2000002083'!C11 -> 0 | N4: =SUM(B4:M4) -> 0
A5: Irr Sal | B5: ='2000002083'!C12 -> 0 | N5: =SUM(B5:M5) -> 0
A6: Sum Sal | B6: ='2000002083'!C13 -> 0 | N6: 0
A7: Stu Sal | B7: ='2000002083'!C14 -> 12206 | C7: -12206 | N7: 0
A8: Fringe | B8: ='2000002083'!C15 -> 2260 | C8: -2260 | N8: 0
A9: OE | B9: ='2000002083'!C16 -> 0 | N9: 0
A10: Travel | B10: ='2000002083'!C17 -> 0 | N10: 0
A11: Capital | B11: ='2000002083'!C18 -> 85534 | C11: 14466 | N11: 100000
A12: Subcontracts | B12: ='2000002083'!C19 -> 0 | N12: 0
A13: Student Costs | B13: ='2000002083'!C20 -> 0 | N13: 0
A14: Total Direct | B14: =SUM(B4:B13) -> 100000 | C14: =SUM(C4:C13) -> 0 | D14: 0 | E14: 0 | F14: =SUM(F4:F13) -> 0 | G14: 0 | H14: 0 | I14: 0 | J14: 0 | K14: 0 | L14: 0 | M14: 0 | N14: 100000
A15: F&A | B15: ='2000002083'!C22 -> 0 | N15: =SUM(B15:M15) -> 0
A17: Totals | B17: =SUM(B14:B15) -> 100000 | C17: =SUM(C14:C15) -> 0 | D17: =SUM(D14:D15) -> 0 | E17: =SUM(E14:E15) -> 0 | F17: =SUM(F14:F15) -> 0 | G17: 0 | H17: 0 | I17: 0 | J17: 0 | K17: 0 | L17: 0 | M17: 0 | N17: =SUM(N14:N15) -> 100000
B19: If the budget or end date of the project has changed, the PQ for Graph budget will need to be updated

Sheet PQ for Graph
A1: PERIOD_NAME | B1: Total Spent | C1: Budget | D1: 12 | E1: FISCAL_YEAR | F1: PERIOD | G1: PERIOD_NAME | H1: BALANCE_TYPE | I1: ENCUMBRANCE_TYPE | J1: FUND | K1: FUND_DESC | L1: DEPARTMENT | M1: COST_CENTER | N1: COST_CENTER_DESC | O1: NATURAL_ACCOUNT | P1: NATURAL_ACCOUNT_DESC | Q1: SUPPLEMENTAL | R1: INTERFUND | S1: PROJECT | T1: FUTURE1 | U1: NET_AMOUNT | V1: ACCTNG_DATE | W1: TRANSACTION_NUMBER | X1: APPLICATION_NAME | Y1: JE_SOURCE_NAME | Z1: JE_CATEGORY_NAME | AA1: GL_BATCH_NAME | AB1: GL_BATCH_DESC | AC1: GL_JE_NAME | AD1: SUBLEDGER_JE_DESC | AE1: GL_JE_DESC | AF1: GL_LINE_DESC | AG1: GL_LINE_NUMBER | AH1: SUBLEDGER_JE_LINE_DESC | AI1: PARTY_NAME | AJ1: ADDITIONAL_INFO | AK1: ACCOUNTING_CODE_COMBINATION | AL1: CODE_COMBINATION_DESC
B2: =SUMIF(G:G,A2,U:U) -> 0 | C2: =('2000002083'!$D$21/'PQ for Graph'!$D$1) -> 8333.333333 | D2: 1-22 | E2: 2022 | F2: 1 | G2: ‭1-22‬ | H2: Encumbrance | I2: Obligation | J2: 1850 | K2: HERC Appropriated | L2: 13000 | M2: 1001004 | N2: Projects-04-Research | O2: 685000 | P2: Medical & Laboratory Equi | Q2: 0 | R2: 0 | S2: 2000002083 | T2: 0 | U2: 85358.82 | V2: 2021-07-01 | W2: ‭PO138767‬ | X2: Purchasing | Y2: Purchasing | Z2: Purchase Order | AA2: Purchasing E 2799074000001 2799081 Y | AC2: 01-07-2021 Purchase Order300000000114941 | AG2: 10 | AI2: MTS Systems Corporation | AK2: ‭1850.13000.1001004.685000.0000000000.0000.2000002083.0000000000‬ | AL2: HERC Appropriated.Mechanical & Biomedical E.Projects-04-Research.Medical & Laboratory Equi.Supplemental Default.Default Fund.Multiphysics Characteriza.Default Future 1 Finance
C3: =('2000002083'!$D$21/'PQ for Graph'!$D$1)+C2 -> 16666.66667 | D3: 2-22 | E3: 2022 | F3: 1 | G3: ‭1-22‬ | H3: Encumbrance | I3: Commitment | J3: 1850 | K3: HERC Appropriated | L3: 13000 | M3: 1001004 | N3: Projects-04-Research | O3: 685000 | P3: Medical & Laboratory Equi | Q3: 0 | R3: 0 | S3: 2000002083 | T3: 0 | U3: -85534 | V3: 44378 | W3: ‭PO138767‬ | X3: Purchasing | Y3: Purchasing | Z3: Purchase Order | AA3: Purchasing E 2799074000001 2799081 Y | AC3: 01-07-2021 Purchase Order300000000114940 | AG3: 9 | AI3: MTS Systems Corporation | AK3: ‭1850.13000.1001004.685000.0000000000.0000.2000002083.0000000000‬ | AL3: HERC Appropriated.Mechanical & Biomedical E.Projects-04-Research.Medical & Laboratory Equi.Supplemental Default.Default Fund.Multiphysics Characteriza.Default Future 1 Finance
C4: =('2000002083'!$D$21/'PQ for Graph'!$D$1)+C3 -> 25000 | D4: 3-22 | E4: 2022 | F4: 1 | G4: ‭1-22‬ | H4: Encumbrance | I4: Commitment | J4: 1850 | K4: HERC Appropriated | L4: 13000 | M4: 1001004 | N4: Projects-04-Research | O4: 685000 | P4: Medical & Laboratory Equi | Q4: 0 | R4: 0 | S4: 2000002083 | T4: 0 | U4: 85534 | V4: 44378 | W4: ‭REQ162439‬ | X4: Purchasing | Y4: Purchasing | Z4: Requisition | AA4: Purchasing E 2799074000001 2799081 Y | AC4: 01-07-2021 Requisition300000000114940 | AG4: 11 | AK4: ‭1850.13000.1001004.685000.0000000000.0000.2000002083.0000000000‬ | AL4: HERC Appropriated.Mechanical & Biomedical E.Projects-04-Research.Medical & Laboratory Equi.Supplemental Default.Default Fund.Multiphysics Characteriza.Default Future 1 Finance
C5: =('2000002083'!$D$21/'PQ for Graph'!$D$1)+C4 -> 33333.33333 | D5: 4-22
C6: =('2000002083'!$D$21/'PQ for Graph'!$D$1)+C5 -> 41666.66667 | D6: 5-22
C7: =('2000002083'!$D$21/'PQ for Graph'!$D$1)+C6 -> 50000 | D7: 6-22
C8: =('2000002083'!$D$21/'PQ for Graph'!$D$1)+C7 -> 58333.33333 | D8: 7-22
C9: =('2000002083'!$D$21/'PQ for Graph'!$D$1)+C8 -> 66666.66667 | D9: 8-22
C10: =('2000002083'!$D$21/'PQ for Graph'!$D$1)+C9 -> 75000 | D10: 9-22
C11: =('2000002083'!$D$21/'PQ for Graph'!$D$1)+C10 -> 83333.33333 | D11: 10-22
C12: =('2000002083'!$D$21/'PQ for Graph'!$D$1)+C11 -> 91666.66667 | D12: 11-22
C13: =('2000002083'!$D$21/'PQ for Graph'!$D$1)+C12 -> 100000 | D13: 12-22
D14: 13
D15: 14
D16: 15
D17: 16
D18: 17
D19: 18
D20: 19
D21: 20
D22: 21
D23: 22
D24: 23
D25: 24
D26: 25
D27: 26
D28: 27
D29: 28
D30: 29
D31: 30
D32: 31
D33: 32
D34: 33
D35: 34
D36: 35
D37: 36
D38: 37
D39: 38
D40: 39
D41: 40
D42: 41
D43: 42
D44: 43
D45: 44
D46: 45
D47: 46
D48: 47
D49: 48
D50: 49
D51: 50
D52: 51
D53: 52
D54: 53
D55: 54
D56: 55
D57: 56
D58: 57
D59: 58
D60: 59
D61: 60
D62: 61
D63: 62
D64: 63
D65: 64
D66: 65
D67: 66
D68: 67
D69: 68
D70: 69
D71: 70
D72: 71
D73: 72
D74: 73
D75: 74
D76: 75
D77: 76
D78: 77
D79: 78
D80: 79
D81: 80
D82: 81
D83: 82
D84: 83
D85: 84
D86: 85
D87: 86
D88: 87
D89: 88
D90: 89
D91: 90
D92: 91
D93: 92
D94: 93
D95: 94
D96: 95
D97: 96
D98: 97
D99: 98
D100: 99
D101: 100
D102: 101
D103: 102
D104: 103
D105: 104
D106: 105
D107: 106
D108: 107
D109: 108
D110: 109
D111: 110
D112: 111
D113: 112
D114: 113
D115: 114
D116: 115
D117: 116
D118: 117
D119: 118
D120: 119
D121: 120
D122: 121
D123: 122
D124: 123
D125: 124
D126: 125
D127: 126
D128: 127
D129: 128
D130: 129
D131: 130
D132: 131
D133: 132
D134: 133
D135: 134
D136: 135
D137: 136
D138: 137
D139: 138
D140: 139
D141: 140
D142: 141
D143: 142
D144: 143
D145: 144
D146: 145
D147: 146
D148: 147
D149: 148
D150: 149
D151: 150
D152: 151
D153: 152
D154: 153
D155: 154
D156: 155
D157: 156
D158: 157
D159: 158
D160: 159
D161: 160
D162: 161
D163: 162
D164: 163
D165: 164
D166: 165
D167: 166
D168: 167
D169: 168
D170: 169
D171: 170
D172: 171
D173: 172
D174: 173
D175: 174
D176: 175
D177: 176
D178: 177
D179: 178
D180: 179
D181: 180
D182: 181
D183: 182
D184: 183
D185: 184
D186: 185
D187: 186
D188: 187
D189: 188
D190: 189
D191: 190
D192: 191
D193: 192
D194: 193
D195: 194
D196: 195
D197: 196
D198: 197
D199: 198
D200: 199
... 629 more rows
